Body Name,Body,Service Level,Expense Type,Expense Code,Narrative,Date,Transaction Number,Amount,Capital and Revenue,Supplier Name,Supplier ID
South Ribble Council,http://statistics.data.gov.uk/doc/local-authority/30UN,Area 2 - Waste Transport/Eastern & Central Teams,Materials General,4040,BRAKE CHAMBER PJ62UCG JFC 13326,16/10/2019,0000450073,360.46,Revenue,AA UK CV t/a Hydrair Truck & Trailer,132664
South Ribble Council,http://statistics.data.gov.uk/doc/local-authority/30UN,Area 2 - Waste Transport/Eastern & Central Teams,Materials General,4040,BRAKE CALIPER VO65KRF JFC 13365,16/10/2019,0000450074,483.32,Revenue,AA UK CV t/a Hydrair Truck & Trailer,132664
South Ribble Council,http://statistics.data.gov.uk/doc/local-authority/30UN,Area 2 - Waste Transport/Eastern & Central Teams,Materials General,4040,BRAKE CALIPER MX04YNL JFC 13290,09/10/2019,0000450075,378.00,Revenue,AA UK CV t/a Hydrair Truck & Trailer,132664
South Ribble Council,http://statistics.data.gov.uk/doc/local-authority/30UN,Area 2 - Waste Transport/Eastern & Central Teams,Materials General,4040,BRAKE CALIPER VO65KRF JFC 13365,16/10/2019,0000450153,483.32,Revenue,AA UK CV t/a Hydrair Truck & Trailer,132664
South Ribble Council,http://statistics.data.gov.uk/doc/local-authority/30UN,Housing,Cap Grant- Improve Grants,C570,DFG WORKS TO BATHROOM AT ADDRESS REDACTED CUST HAS EQUIP AS PART OF GRANT CLIENT TO PAY THE DIFFERENCE TO ABBI OF 3321.41,02/10/2019,0000449887,"2,278.59",Revenue,ABBI PROPERTY SERVICES LTD,131357
South Ribble Council,http://statistics.data.gov.uk/doc/local-authority/30UN,Homelessness,Contractors Charges 5,5313,agreed void loss,11/10/2019,0000450102,804.31,Revenue,ACCENT FOUNDATION,00015820
South Ribble Council,http://statistics.data.gov.uk/doc/local-authority/30UN,Information Services,Peripherals,4244,ipad 10.5`` 64GB space grey wifi+ cellular,02/10/2019,0000449840,990.00,Revenue,ACS SYSTEMS UK LTD,00070166
South Ribble Council,http://statistics.data.gov.uk/doc/local-authority/30UN,Information Services,Peripherals,4244,ipad 10.5W smart keyboard case,02/10/2019,0000449840,264.00,Revenue,ACS SYSTEMS UK LTD,00070166
South Ribble Council,http://statistics.data.gov.uk/doc/local-authority/30UN,Information Services,Peripherals,4269,"10 x BT Converse 2200 black telephones @ 34.25 each, as per quote",24/10/2019,0000450506,342.50,Revenue,ACS SYSTEMS UK LTD,00070166
South Ribble Council,http://statistics.data.gov.uk/doc/local-authority/30UN,HR & Communications,Training Expense-Course Fees,1402,NAME REDACTED TO ATTEND GDPR LESSONS LEARNED FROM YEAR 1 (1 DAY COURSE) - DATE AND VENUE TO BE CONFIRMED,30/10/2019,0000450571,389.00,Revenue,Act Now Training,132585
South Ribble Council,http://statistics.data.gov.uk/doc/local-authority/30UN,Property Services,Subs to Statutory Bodies,4720,Local Authority Contribution to Active Lancashire 2019/2020 to pay invoice number 881 dated 30th September 2019,09/10/2019,0000450042,"1,500.00",Revenue,ACTIVE LANCASHIRE,00120003
South Ribble Council,http://statistics.data.gov.uk/doc/local-authority/30UN,Area 2 - Waste Transport/Eastern & Central Teams,Materials General,4040,"NVR RECORDER - STATION ROAD, BAMBER BRIDGE",16/10/2019,0000448938,769.00,Revenue,ADT FIRE & SECURITY PLC,131052
South Ribble Council,http://statistics.data.gov.uk/doc/local-authority/30UN,Area 2 - Waste Transport/Eastern & Central Teams,Materials General,4040,ACCESS SOFTWARE - DEPOT,11/10/2019,0000448939,300.00,Revenue,ADT FIRE & SECURITY PLC,131052
South Ribble Council,http://statistics.data.gov.uk/doc/local-authority/30UN,Area 2 - Waste Transport/Eastern & Central Teams,Materials General,4040,2 X PLASTIC PROTECTION PLATES BIN 502,09/10/2019,0000450032,165.56,Revenue,AEBI SCHMIDT UK LTD,00085672
South Ribble Council,http://statistics.data.gov.uk/doc/local-authority/30UN,Area 2 - Waste Transport/Eastern & Central Teams,Materials General,4040,4 X SIDE SKIDS BIN 519,09/10/2019,0000450032,387.12,Revenue,AEBI SCHMIDT UK LTD,00085672
South Ribble Council,http://statistics.data.gov.uk/doc/local-authority/30UN,Area 2 - Waste Transport/Eastern & Central Teams,Materials General,4040,1 PK OF 20 LOCKING WASHERS BIN 518,09/10/2019,0000450032,31.40,Revenue,AEBI SCHMIDT UK LTD,00085672
South Ribble Council,http://statistics.data.gov.uk/doc/local-authority/30UN,Area 2 - Waste Transport/Eastern & Central Teams,Materials General,4040,4 X BRUSH HEAD DAMPERS BIN 521,09/10/2019,0000450032,50.38,Revenue,AEBI SCHMIDT UK LTD,00085672
South Ribble Council,http://statistics.data.gov.uk/doc/local-authority/30UN,Area 2 - Waste Transport/Eastern & Central Teams,Materials General,4040,RAM BALL JOINT AE14AYF JFC 13344,09/10/2019,0000450032,95.80,Revenue,AEBI SCHMIDT UK LTD,00085672
South Ribble Council,http://statistics.data.gov.uk/doc/local-authority/30UN,Area 2 - Waste Transport/Eastern & Central Teams,Materials General,4040,TRACK ROD END AE14AYF JFC 13344,09/10/2019,0000450032,137.34,Revenue,AEBI SCHMIDT UK LTD,00085672
South Ribble Council,http://statistics.data.gov.uk/doc/local-authority/30UN,Area 2 - Waste Transport/Eastern & Central Teams,Materials General,4040,CRANK SHAFT POSITION SENSOR AE14AYF JFC 13344,09/10/2019,0000450032,48.72,Revenue,AEBI SCHMIDT UK LTD,00085672
South Ribble Council,http://statistics.data.gov.uk/doc/local-authority/30UN,Area 2 - Waste Transport/Eastern & Central Teams,Materials General,4040,freight,09/10/2019,0000450032,15.00,Revenue,AEBI SCHMIDT UK LTD,00085672
South Ribble Council,http://statistics.data.gov.uk/doc/local-authority/30UN,Area 2 - Waste Transport/Eastern & Central Teams,Materials General,4040,BRAKE MASTE CYLINER - AE14AYF - JFC13344,24/10/2019,0000450264,575.99,Revenue,AEBI SCHMIDT UK LTD,00085672
South Ribble Council,http://statistics.data.gov.uk/doc/local-authority/30UN,Planning,Professional Fees,4510,Preparation of Local Plan evidence base.  Inception meeting with NAMES REDACTED Tuesday 30th July 2019,18/10/2019,0000450364,"2,400.00",Revenue,Alan Houghton Planning,132950
South Ribble Council,http://statistics.data.gov.uk/doc/local-authority/30UN,Revenues Plus,Financial,4811,post office,09/10/2019,0000450109,831.66,Revenue,ALLPAY LTD,00122276
South Ribble Council,http://statistics.data.gov.uk/doc/local-authority/30UN,Revenues Plus,Financial,4811,paypoint,09/10/2019,0000450109,116.80,Revenue,ALLPAY LTD,00122276
South Ribble Council,http://statistics.data.gov.uk/doc/local-authority/30UN,Revenues Plus,Financial,4811,webconn,09/10/2019,0000450109,46.00,Revenue,ALLPAY LTD,00122276
South Ribble Council,http://statistics.data.gov.uk/doc/local-authority/30UN,Property Services,Rep & Maint Premises,2020,Requested by NAME REDACTED 1. Drain down system and empty all excess fluids from whole system. 2. Install a new 18 litre Drain off kit instead of temporary ins,30/10/2019,0000450560,706.00,Revenue,Ask Renewable Solutions Ltd,132960
South Ribble Council,http://statistics.data.gov.uk/doc/local-authority/30UN,Property Services,Rep & Maint Premises,2020,MATERIALS,30/10/2019,0000450560,924.00,Revenue,Ask Renewable Solutions Ltd,132960
South Ribble Council,http://statistics.data.gov.uk/doc/local-authority/30UN,Democratic Services,Other Misc,4424,NAMES REDACTED TO ATTEND `SUPPLEMENTARY VOTING VERIFICATION AND COUNT` COURSE ON 12 MARCH 2020 AT PRESTON CITY COUNCIL,16/10/2019,0000450224,350.00,Revenue,ASSOC OF ELECTORAL ADMINISTRA,00014449
South Ribble Council,http://statistics.data.gov.uk/doc/local-authority/30UN,Information Services,Peripherals,4248,IDEA & Single User licence for period 01/11/19 - 31/10/20,11/10/2019,0000450166,750.00,Revenue,AUDITWARE SYSTEMS LIMITED,00114938
South Ribble Council,http://statistics.data.gov.uk/doc/local-authority/30UN,Property Services,Rep & Maint Premises,2020,Please attend Civic Centre and install a fuse spare to behind gateway for the new access/egress door as per NAME REDACTED,02/10/2019,0000449853,252.01,Revenue,BELEC ELECTRICAL LTD,130290
South Ribble Council,http://statistics.data.gov.uk/doc/local-authority/30UN,Property Services,Rep & Maint Premises,2020,Annual Contract  2019 / 2020 for  fan convector maintenance at the Civic Centre,11/10/2019,0000450077,400.00,Revenue,BELEC ELECTRICAL LTD,130290
South Ribble Council,http://statistics.data.gov.uk/doc/local-authority/30UN,Property Services,Rep & Maint Premises,2020,Annual Contract 2019/2020 External Lights/Emergency Lighting Maintenance at Leyland Market,11/10/2019,0000450080,350.00,Revenue,BELEC ELECTRICAL LTD,130290
South Ribble Council,http://statistics.data.gov.uk/doc/local-authority/30UN,Property Services,Rep & Maint Premises,2020,Extra order to cover the remainder of the sports pavilions for 2019/2020,22/10/2019,0000450081,554.03,Revenue,BELEC ELECTRICAL LTD,130290
South Ribble Council,http://statistics.data.gov.uk/doc/local-authority/30UN,Property Services,Rep & Maint Premises,2020,Extra order to cover the remainder of the sports pavilions for 2019/2020,18/10/2019,0000450082,250.00,Revenue,BELEC ELECTRICAL LTD,130290
South Ribble Council,http://statistics.data.gov.uk/doc/local-authority/30UN,Property Services,Rep & Maint Premises,2020,Extra order to cover the remainder of the sports pavilions for 2019/2020,18/10/2019,0000450083,285.00,Revenue,BELEC ELECTRICAL LTD,130290
South Ribble Council,http://statistics.data.gov.uk/doc/local-authority/30UN,Property Services,Rep & Maint Premises,2020,Annual Contract 2019/2020 Electrical Testing and Electrical  Installation Test at Public Conveniences,16/10/2019,0000450173,292.96,Revenue,BELEC ELECTRICAL LTD,130290
South Ribble Council,http://statistics.data.gov.uk/doc/local-authority/30UN,Property Services,Rep & Maint Premises,2020,Annual Contract 2019/2020 Electrical Testing and Electrical  Installation Test at Public Conveniences,16/10/2019,0000450174,295.64,Revenue,BELEC ELECTRICAL LTD,130290
South Ribble Council,http://statistics.data.gov.uk/doc/local-authority/30UN,Property Services,Rep & Maint Fixed Plant,2035,Please supply & fit a new security alarm at Moss Side Community Centre,30/10/2019,0000450513,367.70,Revenue,BELEC ELECTRICAL LTD,130290
South Ribble Council,http://statistics.data.gov.uk/doc/local-authority/30UN,Property Services,Rep & Maint Premises,2020,Please install a 3 phase supply form the generator supply panel in IT over to air conditioning units on the roof over the canteen as per quotation dated 29th July 2019,30/10/2019,0000450514,"1,554.25",Revenue,BELEC ELECTRICAL LTD,130290
South Ribble Council,http://statistics.data.gov.uk/doc/local-authority/30UN,Development Enterprise & Comm Mgnt,Other Misc,4851,"Taste of Leyland 2019 6 x generators (2x6kva 3x3kva), 6 leads/adaptors, Fuel x 10 ltrs, Transport 10.00 each way Total excluding VAT 307.50",11/10/2019,0000450212,311.60,Revenue,Brandon Hire Limited,132322
South Ribble Council,http://statistics.data.gov.uk/doc/local-authority/30UN,Area 1 - Penwortham Western Parishes,Contract Hire & Lease Costs,3212,"Continued hire of mini sweeper for June, July, August and September 2019. 17 weeks @ 525.00 per week",24/10/2019,0000449904,"2,350.00",Revenue,BUNCE (ASHBURY) LTD,132805
South Ribble Council,http://statistics.data.gov.uk/doc/local-authority/30UN,Area 3 - Parks/Leyland East West,Grounds Maint Cntrctrs Chgs,4657,Drainage Materials Worden Park Playground,30/10/2019,0000450432,623.84,Revenue,C & W BERRY LTD,00015231
South Ribble Council,http://statistics.data.gov.uk/doc/local-authority/30UN,Housing,Cap Grant- Improve Grants,C570,DFG WORKS TO BATHROOM AT ADDRESS REDACTED AS PER YOUR QUOTE RECEIVED OF 5450.00 COST 5450.00,09/10/2019,0000450041,"5,435.00",Revenue,CAM Building Projects Ltd,132782
South Ribble Council,http://statistics.data.gov.uk/doc/local-authority/30UN,Information Services,Capital Expenditure,C234,Upgrade to e-Claim and e-Cic,04/10/2019,0000449811,"22,560.00",Revenue,CAPITA BUSINESS SERVICES LTD,00122179
South Ribble Council,http://statistics.data.gov.uk/doc/local-authority/30UN,Revenues Plus,Financial,4811,"Cheshire East BC acting as lead, procuring, negotiating contract with Allpay.",02/10/2019,0000449496,"1,500.00",Revenue,Cheshire East Council,132908
South Ribble Council,http://statistics.data.gov.uk/doc/local-authority/30UN,Area 2 - Waste Transport/Eastern & Central Teams,Materials General,4040,2 X DISCS PJ62UCM JFC 13207,02/10/2019,0000449795,224.94,Revenue,CICELEY COMMERCIALS LTD,00059381
South Ribble Council,http://statistics.data.gov.uk/doc/local-authority/30UN,Area 2 - Waste Transport/Eastern & Central Teams,Materials General,4040,1 X BRAKE PADS PJ62UCM JFC 13207,02/10/2019,0000449795,84.87,Revenue,CICELEY COMMERCIALS LTD,00059381
South Ribble Council,http://statistics.data.gov.uk/doc/local-authority/30UN,Area 2 - Waste Transport/Eastern & Central Teams,Materials General,4040,2 X SEALS PJ62UCM JFC 13207,02/10/2019,0000449795,321.48,Revenue,CICELEY COMMERCIALS LTD,00059381
South Ribble Council,http://statistics.data.gov.uk/doc/local-authority/30UN,Area 2 - Waste Transport/Eastern & Central Teams,Materials General,4040,A FRAME - PJ62UCM - JFC13207,02/10/2019,0000449796,478.46,Revenue,CICELEY COMMERCIALS LTD,00059381
South Ribble Council,http://statistics.data.gov.uk/doc/local-authority/30UN,Area 2 - Waste Transport/Eastern & Central Teams,Materials General,4040,SUSPENSION A FRAME - PO13UUM - JFC13324,09/10/2019,0000450040,442.83,Revenue,CICELEY COMMERCIALS LTD,00059381
South Ribble Council,http://statistics.data.gov.uk/doc/local-authority/30UN,Information Services,Capital Expenditure,C234,Upgrade to Version 17.5 3D secure V2 Initial Licence,04/10/2019,0000449645,"12,000.00",Revenue,CIVICA UK LTD,00102717
South Ribble Council,http://statistics.data.gov.uk/doc/local-authority/30UN,Information Services,Peripherals,4248,"Whitelisting IP address, as per quote",02/10/2019,0000449897,612.50,Revenue,CIVICA UK LTD,00102717
South Ribble Council,http://statistics.data.gov.uk/doc/local-authority/30UN,Democratic Services,Consultancy Fees,4541,NAME REDACTED TO PROVIDE 1 FULL DAY OF TRAINING ON REPORTS MANAGEMENT ON 26 SEPTEMBER 2019,04/10/2019,0000449963,650.00,Revenue,CIVICA UK LTD,00102717
South Ribble Council,http://statistics.data.gov.uk/doc/local-authority/30UN,Information Services,Peripherals,4248,ICON - Annual Hosting Fee for period 01/10/19 - 30/09/20,11/10/2019,0000450143,"22,249.00",Revenue,CIVICA UK LTD,00102717
South Ribble Council,http://statistics.data.gov.uk/doc/local-authority/30UN,Information Services,Peripherals,4248,ICON - Transaction Uplift 01/10/19 - 30/09/20,24/10/2019,0000450505,"4,050.00",Revenue,CIVICA UK LTD,00102717
South Ribble Council,http://statistics.data.gov.uk/doc/local-authority/30UN,Information Services,Peripherals,4241,"600 x Matt silver void polyester + gloss lamination, 65 x 25mm. 600 x Silver Void Polyester Laminated 25 x 15mm, 276 as per quote 77424, plus delivery 8.95",22/10/2019,0000450408,582.95,Revenue,COLOUR DATA UK LTD,00096182
South Ribble Council,http://statistics.data.gov.uk/doc/local-authority/30UN,Property Services,Rep & Maint Premises,2020,Please attend the civic centre to undertake repairs to the water boilers identified on the scheduled service as per quotation in e-mail dated 27th June,09/10/2019,0000449032,628.00,Revenue,COMMERCIAL KITCHEN SERVICES LT,00019538
South Ribble Council,http://statistics.data.gov.uk/doc/local-authority/30UN,Property Services,Rep & Maint Premises,2020,Please attend Moss Side depot to undertake repairs to the water boiler identified at the scheduled service as per quotation,09/10/2019,0000449032,86.00,Revenue,COMMERCIAL KITCHEN SERVICES LT,00019538
South Ribble Council,http://statistics.data.gov.uk/doc/local-authority/30UN,Neighbourhood Admin & Support,Grounds Maint Cntrctrs Chgs,4657,ADDITIONAL WORK - 5.5  DAYS,04/10/2019,0000449986,"2,350.00",Revenue,Community First Partnership,132836
South Ribble Council,http://statistics.data.gov.uk/doc/local-authority/30UN,Property Services,Rep & Maint Premises,2020,Please supply & fit a stainless steel handrail to cover the window in the banqueting suite at the civic centre,16/10/2019,0000450247,100.00,Revenue,COOPER BESPOKE JOINERY LTD,00104456
South Ribble Council,http://statistics.data.gov.uk/doc/local-authority/30UN,Property Services,Rep & Maint Premises,2020,materials,16/10/2019,0000450247,168.00,Revenue,COOPER BESPOKE JOINERY LTD,00104456
South Ribble Council,http://statistics.data.gov.uk/doc/local-authority/30UN,Housing,Cap Grant- Improve Grants,C570,DFG WORKS TO BATHROOM AT ADDRESS REDACTED AS PER QUOTE SUPPLIED OF 3877.00 COST 3877.00,02/10/2019,0000449909,"3,877.00",Revenue,Cornerstone Building & Maintenance Ltd,131383
South Ribble Council,http://statistics.data.gov.uk/doc/local-authority/30UN,Revenues Plus,Postage,4291,Postage - June to September 2019,02/10/2019,0000449862,369.22,Revenue,CRITIQOM,131053
South Ribble Council,http://statistics.data.gov.uk/doc/local-authority/30UN,Revenues Plus,Postage,4291,Postage - June to September 2019,09/10/2019,0000450071,528.74,Revenue,CRITIQOM,131053
South Ribble Council,http://statistics.data.gov.uk/doc/local-authority/30UN,Revenues Plus,Postage,4291,Postage for October to December 2019,18/10/2019,0000450255,380.83,Revenue,CRITIQOM,131053
South Ribble Council,http://statistics.data.gov.uk/doc/local-authority/30UN,Revenues Plus,Postage,4291,Postage for October to December 2019,18/10/2019,0000450358,361.20,Revenue,CRITIQOM,131053
South Ribble Council,http://statistics.data.gov.uk/doc/local-authority/30UN,Revenues Plus,Postage,4291,Postage for October to December 2019,24/10/2019,0000450497,495.75,Revenue,CRITIQOM,131053
South Ribble Council,http://statistics.data.gov.uk/doc/local-authority/30UN,Housing,Cap Grant- Improve Grants,C570,DFG WORKS TO BATHROOM AT ADDRESS REDACTED AS PER QUOTE SUPPLIED TO MATCH SRBC SPECIFICATION OF 5170.00 TOTAL COST OF GRANT 5170.00,22/10/2019,0000450297,"4,761.87",Revenue,Croston Plumbing & Heating Ltd,131545
South Ribble Council,http://statistics.data.gov.uk/doc/local-authority/30UN,Legal,Legal,4821,PROFESSIONAL SERVICES WITH REGARD TO THE CITY DEAL (SOLICITOR IS IOAN DAVIES),02/10/2019,0000449703,"5,000.00",Revenue,DAC BEACHCROFT LLP,131193
South Ribble Council,http://statistics.data.gov.uk/doc/local-authority/30UN,Legal,Legal,4821,PROFESSIONAL SERVICES WITH REGARD TO AN EMPLOYMENT MATTER - 31 AUGUST - 30 SEPTEMBER 2019,18/10/2019,0000450385,"1,358.00",Revenue,DAC BEACHCROFT LLP,131193
South Ribble Council,http://statistics.data.gov.uk/doc/local-authority/30UN,Property Services,Rep & Maint Premises,2020,Annual Contract for maintenance 2019/2020 of 1 x  McSmart 240cr Industrial Water Chiller  and 1 x McQuay Air Handling Unit  date of visits TBA please contact for access,16/10/2019,0000450156,540.75,Revenue,DAIKIN APPLIED SERVICE,130324
South Ribble Council,http://statistics.data.gov.uk/doc/local-authority/30UN,Revenues Plus,Balance Sheet,0001,,30/10/2019,0000450620,295.00,Revenue,Darren Miller t/a Barristers,132978
South Ribble Council,http://statistics.data.gov.uk/doc/local-authority/30UN,Healthy Communities,Professional Fees,4510,Delivery of Bikeability Training across various schools throughout September. Total Cost 540.00,09/10/2019,0000450084,540.00,Revenue,David Evans,132686
South Ribble Council,http://statistics.data.gov.uk/doc/local-authority/30UN,Area 2 - Waste Transport/Eastern & Central Teams,Materials General,4040,2 X BRAKE DISCS & 2 X NUTS VO65KRF JFC 13211,02/10/2019,0000449688,468.68,Revenue,DENNIS EAGLE LTD,00019774
South Ribble Council,http://statistics.data.gov.uk/doc/local-authority/30UN,Area 2 - Waste Transport/Eastern & Central Teams,Materials General,4040,2 X DROP LINKS VO65KPZ JFC 13397,24/10/2019,0000450467,413.17,Revenue,DENNIS EAGLE LTD,00019774
South Ribble Council,http://statistics.data.gov.uk/doc/local-authority/30UN,Property Services,Rep & Maint Fixed Plant,2035,"2019 / 2020 contract for fire alarm service at the Civic Centre, Leyland",04/10/2019,0000449799,400.00,Revenue,DES Electrical Services Ltd,131437
South Ribble Council,http://statistics.data.gov.uk/doc/local-authority/30UN,Property Services,Rep & Maint Fixed Plant,2035,2019 / 2020 contract for fire alarm service at Leyland Market,04/10/2019,0000449799,200.00,Revenue,DES Electrical Services Ltd,131437
South Ribble Council,http://statistics.data.gov.uk/doc/local-authority/30UN,Property Services,Rep & Maint Fixed Plant,2035,2019 / 2020 contract for fire alarm service at Moss Side Depot,04/10/2019,0000449799,300.00,Revenue,DES Electrical Services Ltd,131437
South Ribble Council,http://statistics.data.gov.uk/doc/local-authority/30UN,Property Services,Rep & Maint Fixed Plant,2035,2019 / 2020 contract for fire alarm service at Leyland Museum,04/10/2019,0000449799,160.00,Revenue,DES Electrical Services Ltd,131437
South Ribble Council,http://statistics.data.gov.uk/doc/local-authority/30UN,Property Services,Rep & Maint Fixed Plant,2035,2019 / 2020 contract for fire alarm service at Worden Arts & Craft Centre,04/10/2019,0000449799,248.00,Revenue,DES Electrical Services Ltd,131437
South Ribble Council,http://statistics.data.gov.uk/doc/local-authority/30UN,Property Services,Rep & Maint Fixed Plant,2035,"2019 / 2020 contract for fire alarm service at CAB / Navy club, Towngate, Leyland",04/10/2019,0000449799,200.00,Revenue,DES Electrical Services Ltd,131437
South Ribble Council,http://statistics.data.gov.uk/doc/local-authority/30UN,Neighbourhood Admin & Support,Operational Furniture & Equip,4010,"1 x MS661CM 36"" CHAINSAW 2 x HT133 POLESAW 3 x MS201 CHAINSAW 4 x MS261 CHAINSAW 2 x MS500I CHAINSAW 1 x 14`` BAR REF QUOTE 206740",30/10/2019,0000450624,"6,710.84",Revenue,DICK LEIGH,00026534
South Ribble Council,http://statistics.data.gov.uk/doc/local-authority/30UN,Property Services,Rep & Maint Premises,2020,"Please attend Civic Centre, Leyland PR25 1DH and carry out works as per quotation Q54620 to rectify the issues brought up by Zurich`s lift inspection - per NAME REDACTED",11/10/2019,0000450085,"1,319.86",Revenue,E A Foulds Limited,131427
South Ribble Council,http://statistics.data.gov.uk/doc/local-authority/30UN,Information Services,Peripherals,4260,01-Oct-19,09/10/2019,0000450064,"2,635.11",Revenue,EE Payment Processing,131950
South Ribble Council,http://statistics.data.gov.uk/doc/local-authority/30UN,Information Services,Peripherals,4260,equipment 3x samsung A40 black,30/10/2019,0000450472,638.25,Revenue,EE Payment Processing,131950
South Ribble Council,http://statistics.data.gov.uk/doc/local-authority/30UN,Regeneration,Operational Furniture & Equip,4010,4 ROLLS MATT LAM.FILM 635 X 75M .75MIC 1`` ML63575751 @ 72.90per roll 4 ROLLS GLOSS LAM FILM 635MM X 75M .75MIC 1`` GL63575751 @ 49.80per roll,30/10/2019,0000450611,490.80,Revenue,ELMSTOK LTD,00118471
South Ribble Council,http://statistics.data.gov.uk/doc/local-authority/30UN,Area 3 - Parks/Leyland East West,Grounds Maint Cntrctrs Chgs,4657,"BAT SURVEY AND ASSESSMENT, HURST GRANGE PARK COACH HOUSE, PENWORTHAM",18/10/2019,0000449964,"1,520.00",Revenue,ERAP (Consultant Ecologists) Ltd,132895
South Ribble Council,http://statistics.data.gov.uk/doc/local-authority/30UN,Area 2 - Waste Transport/Eastern & Central Teams,Materials General,4040,2 X REAR LEAF SPRINGS PN58WKH JFC 13362,24/10/2019,0000450265,858.50,Revenue,EVANSHALSHAW (PRESTON) LTD,00021076
South Ribble Council,http://statistics.data.gov.uk/doc/local-authority/30UN,Area 2 - Waste Transport/Eastern & Central Teams,Materials General,4040,6 X DECK PINS BIN 1252,24/10/2019,0000449901,206.20,Revenue,F R SHARROCK LTD,00034539
South Ribble Council,http://statistics.data.gov.uk/doc/local-authority/30UN,Area 2 - Waste Transport/Eastern & Central Teams,Materials General,4040,3 X DECK BELTS BIN 1220,24/10/2019,0000449901,71.91,Revenue,F R SHARROCK LTD,00034539
South Ribble Council,http://statistics.data.gov.uk/doc/local-authority/30UN,Area 2 - Waste Transport/Eastern & Central Teams,Materials General,4040,3 X BOTTOM BLOCKS BIN 1272,24/10/2019,0000449902,678.48,Revenue,F R SHARROCK LTD,00034539
South Ribble Council,http://statistics.data.gov.uk/doc/local-authority/30UN,Area 2 - Waste Transport/Eastern & Central Teams,Materials General,4040,RIGHT HAND DECK ARM PO16HMU JFC 12799,09/10/2019,0000450031,328.53,Revenue,F R SHARROCK LTD,00034539
South Ribble Council,http://statistics.data.gov.uk/doc/local-authority/30UN,Area 3 - Parks/Leyland East West,External Contractors Charges,4570,HIRE OF FLAIL FOR 4 WEEKS (15/07/2019 - 09/08/2019) @ 360.00 PER WEEK,16/10/2019,0000450038,"1,800.00",Revenue,F R SHARROCK LTD,00034539
South Ribble Council,http://statistics.data.gov.uk/doc/local-authority/30UN,Area 2 - Waste Transport/Eastern & Central Teams,Materials General,4040,2 X BUSHES VU11HSZ JFC 13098,02/10/2019,0000449885,22.00,Revenue,Faun Zoeller (UK) Ltd,132946
South Ribble Council,http://statistics.data.gov.uk/doc/local-authority/30UN,Area 2 - Waste Transport/Eastern & Central Teams,Materials General,4040,BUFFER CARRIAGE BOLT VU11HSZ JFC 13098,02/10/2019,0000449885,55.00,Revenue,Faun Zoeller (UK) Ltd,132946
South Ribble Council,http://statistics.data.gov.uk/doc/local-authority/30UN,Area 2 - Waste Transport/Eastern & Central Teams,Materials General,4040,PLATE BOLT VU11HSZ JFC 13098,02/10/2019,0000449885,15.00,Revenue,Faun Zoeller (UK) Ltd,132946
South Ribble Council,http://statistics.data.gov.uk/doc/local-authority/30UN,Area 2 - Waste Transport/Eastern & Central Teams,Materials General,4040,WASHER 1MM VU11HSZ JFC 13098,02/10/2019,0000449885,5.00,Revenue,Faun Zoeller (UK) Ltd,132946
South Ribble Council,http://statistics.data.gov.uk/doc/local-authority/30UN,Area 2 - Waste Transport/Eastern & Central Teams,Materials General,4040,2 X WASHER VU11HSZ JFC 13098,02/10/2019,0000449885,2.80,Revenue,Faun Zoeller (UK) Ltd,132946
South Ribble Council,http://statistics.data.gov.uk/doc/local-authority/30UN,Area 2 - Waste Transport/Eastern & Central Teams,Materials General,4040,LOWER CARRIAGE BOLT,02/10/2019,0000449885,13.70,Revenue,Faun Zoeller (UK) Ltd,132946
South Ribble Council,http://statistics.data.gov.uk/doc/local-authority/30UN,Area 2 - Waste Transport/Eastern & Central Teams,Materials General,4040,4 X LOCKING RING VU11HSZ JFC 13098,02/10/2019,0000449885,4.80,Revenue,Faun Zoeller (UK) Ltd,132946
South Ribble Council,http://statistics.data.gov.uk/doc/local-authority/30UN,Area 2 - Waste Transport/Eastern & Central Teams,Materials General,4040,4 X LOWER SLEEVES VU11HSZ JFC 13098,02/10/2019,0000449885,205.20,Revenue,Faun Zoeller (UK) Ltd,132946
South Ribble Council,http://statistics.data.gov.uk/doc/local-authority/30UN,Area 2 - Waste Transport/Eastern & Central Teams,Materials General,4040,4 X SWING ARM SLEEVES VU11HSZ JFC 13098,02/10/2019,0000449885,97.20,Revenue,Faun Zoeller (UK) Ltd,132946
South Ribble Council,http://statistics.data.gov.uk/doc/local-authority/30UN,Area 2 - Waste Transport/Eastern & Central Teams,Materials General,4040,2 X SHAFTS VU11HSZ JFC 13098,02/10/2019,0000449885,165.60,Revenue,Faun Zoeller (UK) Ltd,132946
South Ribble Council,http://statistics.data.gov.uk/doc/local-authority/30UN,Area 2 - Waste Transport/Eastern & Central Teams,Materials General,4040,4 X LOCKING WASHERS VU11HSZ JFC 13098,02/10/2019,0000449885,45.20,Revenue,Faun Zoeller (UK) Ltd,132946
South Ribble Council,http://statistics.data.gov.uk/doc/local-authority/30UN,Area 2 - Waste Transport/Eastern & Central Teams,Materials General,4040,4 X NYLOC NUTS VU11HSZ JFC 13098,02/10/2019,0000449885,6.40,Revenue,Faun Zoeller (UK) Ltd,132946
South Ribble Council,http://statistics.data.gov.uk/doc/local-authority/30UN,Area 2 - Waste Transport/Eastern & Central Teams,Materials General,4040,2 X BEARINGS VU11HSZ JFC 13098,02/10/2019,0000449885,2.40,Revenue,Faun Zoeller (UK) Ltd,132946
South Ribble Council,http://statistics.data.gov.uk/doc/local-authority/30UN,Area 2 - Waste Transport/Eastern & Central Teams,Materials General,4040,deliver charge,02/10/2019,0000449885,14.00,Revenue,Faun Zoeller (UK) Ltd,132946
South Ribble Council,http://statistics.data.gov.uk/doc/local-authority/30UN,Area 2 - Waste Transport/Eastern & Central Teams,External Contractors Charges,4570,SPEC REPAIR TO CALIBRATE RH CHAIR VU60HLE JFC 12953,30/10/2019,0000450523,647.95,Revenue,Faun Zoeller (UK) Ltd,132946
South Ribble Council,http://statistics.data.gov.uk/doc/local-authority/30UN,Area 2 - Waste Transport/Eastern & Central Teams,External Contractors Charges,4570,Residual Waste Collections - Catch up April - July 2019,02/10/2019,0000449650,"9,218.85",Revenue,FCC Environment Services (UK) Ltd,131612
South Ribble Council,http://statistics.data.gov.uk/doc/local-authority/30UN,Area 2 - Waste Transport/Eastern & Central Teams,External Contractors Charges,4570,Dry recycling non-terraced - Catch up April - July 2019,02/10/2019,0000449650,"9,382.21",Revenue,FCC Environment Services (UK) Ltd,131612
South Ribble Council,http://statistics.data.gov.uk/doc/local-authority/30UN,Area 2 - Waste Transport/Eastern & Central Teams,External Contractors Charges,4570,Dry recyclable terraced - Catch up April - July 2019,02/10/2019,0000449650,460.62,Revenue,FCC Environment Services (UK) Ltd,131612
South Ribble Council,http://statistics.data.gov.uk/doc/local-authority/30UN,Area 2 - Waste Transport/Eastern & Central Teams,External Contractors Charges,4570,Organic waste terraced - Catch up April - July 2019,02/10/2019,0000449650,"6,400.49",Revenue,FCC Environment Services (UK) Ltd,131612
South Ribble Council,http://statistics.data.gov.uk/doc/local-authority/30UN,Area 2 - Waste Transport/Eastern & Central Teams,External Contractors Charges,4570,Schedule 2 Properties -  Catch up April - July 2019,02/10/2019,0000449650,397.12,Revenue,FCC Environment Services (UK) Ltd,131612
South Ribble Council,http://statistics.data.gov.uk/doc/local-authority/30UN,Area 2 - Waste Transport/Eastern & Central Teams,External Contractors Charges,4570,Commercial Waste - Catch up April - July 2019,02/10/2019,0000449650,"1,398.32",Revenue,FCC Environment Services (UK) Ltd,131612
South Ribble Council,http://statistics.data.gov.uk/doc/local-authority/30UN,Area 2 - Waste Transport/Eastern & Central Teams,External Contractors Charges,4570,Bulky Waste -  Catch up April - July 2019,02/10/2019,0000449650,207.04,Revenue,FCC Environment Services (UK) Ltd,131612
South Ribble Council,http://statistics.data.gov.uk/doc/local-authority/30UN,Area 2 - Waste Transport/Eastern & Central Teams,External Contractors Charges,4570,WEEE Collections  Catch up April - July 2019,02/10/2019,0000449650,83.58,Revenue,FCC Environment Services (UK) Ltd,131612
South Ribble Council,http://statistics.data.gov.uk/doc/local-authority/30UN,Area 2 - Waste Transport/Eastern & Central Teams,External Contractors Charges,4570,Clinical Waste  Catch up April - July 2019,02/10/2019,0000449650,143.14,Revenue,FCC Environment Services (UK) Ltd,131612
South Ribble Council,http://statistics.data.gov.uk/doc/local-authority/30UN,Area 2 - Waste Transport/Eastern & Central Teams,External Contractors Charges,4570,Additional Properties  Catch up April - July 2019,02/10/2019,0000449650,516.83,Revenue,FCC Environment Services (UK) Ltd,131612
South Ribble Council,http://statistics.data.gov.uk/doc/local-authority/30UN,Area 2 - Waste Transport/Eastern & Central Teams,External Contractors Charges,4570,Residual Waste Collections September 2019,16/10/2019,0000450218,"44,188.02",Revenue,FCC Environment Services (UK) Ltd,131612
South Ribble Council,http://statistics.data.gov.uk/doc/local-authority/30UN,Area 2 - Waste Transport/Eastern & Central Teams,External Contractors Charges,4570,Dry Recyclable non terraced - September 2019,16/10/2019,0000450218,"45,238.56",Revenue,FCC Environment Services (UK) Ltd,131612
South Ribble Council,http://statistics.data.gov.uk/doc/local-authority/30UN,Area 2 - Waste Transport/Eastern & Central Teams,External Contractors Charges,4570,Dry Recyclable Terraced - September 2019,16/10/2019,0000450218,"2,152.65",Revenue,FCC Environment Services (UK) Ltd,131612
South Ribble Council,http://statistics.data.gov.uk/doc/local-authority/30UN,Area 2 - Waste Transport/Eastern & Central Teams,External Contractors Charges,4570,Organic Waste (Non Terraced) - September 2019,16/10/2019,0000450218,"31,326.88",Revenue,FCC Environment Services (UK) Ltd,131612
South Ribble Council,http://statistics.data.gov.uk/doc/local-authority/30UN,Area 2 - Waste Transport/Eastern & Central Teams,External Contractors Charges,4570,Schedule 2 Properties - September 2019,16/10/2019,0000450218,"1,800.34",Revenue,FCC Environment Services (UK) Ltd,131612
South Ribble Council,http://statistics.data.gov.uk/doc/local-authority/30UN,Area 2 - Waste Transport/Eastern & Central Teams,External Contractors Charges,4570,Commercial Waste - September 2019,16/10/2019,0000450218,"7,016.08",Revenue,FCC Environment Services (UK) Ltd,131612
South Ribble Council,http://statistics.data.gov.uk/doc/local-authority/30UN,Area 2 - Waste Transport/Eastern & Central Teams,External Contractors Charges,4570,Bulky Waste Collections - September 2019,16/10/2019,0000450218,973.14,Revenue,FCC Environment Services (UK) Ltd,131612
South Ribble Council,http://statistics.data.gov.uk/doc/local-authority/30UN,Area 2 - Waste Transport/Eastern & Central Teams,External Contractors Charges,4570,WEEE collections - September 2019,16/10/2019,0000450218,365.30,Revenue,FCC Environment Services (UK) Ltd,131612
South Ribble Council,http://statistics.data.gov.uk/doc/local-authority/30UN,Area 2 - Waste Transport/Eastern & Central Teams,External Contractors Charges,4570,Clinical Waste Collections - September 2019,16/10/2019,0000450218,622.30,Revenue,FCC Environment Services (UK) Ltd,131612
South Ribble Council,http://statistics.data.gov.uk/doc/local-authority/30UN,Area 2 - Waste Transport/Eastern & Central Teams,External Contractors Charges,4570,Replacement Bins - September 2019,16/10/2019,0000450218,"5,000.00",Revenue,FCC Environment Services (UK) Ltd,131612
South Ribble Council,http://statistics.data.gov.uk/doc/local-authority/30UN,Area 2 - Waste Transport/Eastern & Central Teams,External Contractors Charges,4570,Additional Properties - September 2019,16/10/2019,0000450218,"2,846.81",Revenue,FCC Environment Services (UK) Ltd,131612
South Ribble Council,http://statistics.data.gov.uk/doc/local-authority/30UN,Area 2 - Waste Transport/Eastern & Central Teams,Balance Sheet,0030,retention refuse,16/10/2019,0000450218,"-2,890.60",Revenue,FCC Environment Services (UK) Ltd,131612
South Ribble Council,http://statistics.data.gov.uk/doc/local-authority/30UN,Area 2 - Waste Transport/Eastern & Central Teams,Balance Sheet,0030,retention recycling,16/10/2019,0000450218,"-3,935.90",Revenue,FCC Environment Services (UK) Ltd,131612
South Ribble Council,http://statistics.data.gov.uk/doc/local-authority/30UN,Area 2 - Waste Transport/Eastern & Central Teams,External Contractors Charges,4570,Charge for manpower to deliver recycling stickers (cost to be recovered from LCC),11/10/2019,0000450223,"2,500.00",Revenue,FCC Environment Services (UK) Ltd,131612
South Ribble Council,http://statistics.data.gov.uk/doc/local-authority/30UN,Area 2 - Waste Transport/Eastern & Central Teams,External Contractors Charges,4570,Additional Bulky Waste Collections - September 2019,16/10/2019,0000450228,529.54,Revenue,FCC Environment Services (UK) Ltd,131612
South Ribble Council,http://statistics.data.gov.uk/doc/local-authority/30UN,Area 2 - Waste Transport/Eastern & Central Teams,External Contractors Charges,4570,Additional WEEE Collections - September 2019,16/10/2019,0000450228,239.96,Revenue,FCC Environment Services (UK) Ltd,131612
South Ribble Council,http://statistics.data.gov.uk/doc/local-authority/30UN,Area 2 - Waste Transport/Eastern & Central Teams,Balance Sheet,0030,retention,16/10/2019,0000450228,-38.47,Revenue,FCC Environment Services (UK) Ltd,131612
South Ribble Council,http://statistics.data.gov.uk/doc/local-authority/30UN,Area 2 - Waste Transport/Eastern & Central Teams,External Contractors Charges,4570,Additional Clinical Waste Collections September 2019,16/10/2019,0000450231,350.40,Revenue,FCC Environment Services (UK) Ltd,131612
South Ribble Council,http://statistics.data.gov.uk/doc/local-authority/30UN,Area 2 - Waste Transport/Eastern & Central Teams,Balance Sheet,0030,retention,16/10/2019,0000450231,-17.52,Revenue,FCC Environment Services (UK) Ltd,131612
South Ribble Council,http://statistics.data.gov.uk/doc/local-authority/30UN,Area 2 - Waste Transport/Eastern & Central Teams,External Contractors Charges,4570,COTC Charge October 2018 - March 2019  (26 weeks less 6 already paid),30/10/2019,0000450536,"2,400.00",Revenue,FCC Environment Services (UK) Ltd,131612
South Ribble Council,http://statistics.data.gov.uk/doc/local-authority/30UN,Area 2 - Waste Transport/Eastern & Central Teams,External Contractors Charges,4570,COTC Charge April - September 2019 (25 weeks less 6 already paid),30/10/2019,0000450536,"2,280.00",Revenue,FCC Environment Services (UK) Ltd,131612
South Ribble Council,http://statistics.data.gov.uk/doc/local-authority/30UN,Area 3 - Parks/Leyland East West,Grounds Maint Cntrctrs Chgs,4657,25x 10m Multi-coloured Connectable Diamond Lights 80 Led (MV003M),24/10/2019,0000450340,416.50,Revenue,FESTIVE LIGHTS,130235
South Ribble Council,http://statistics.data.gov.uk/doc/local-authority/30UN,Area 3 - Parks/Leyland East West,Grounds Maint Cntrctrs Chgs,4657,6x Black Ring Converters (MV026B),24/10/2019,0000450340,27.96,Revenue,FESTIVE LIGHTS,130235
South Ribble Council,http://statistics.data.gov.uk/doc/local-authority/30UN,Revenues Plus,Balance Sheet,0001,Refund,02/10/2019,0000449982,329.36,Revenue,NAME REDACTED,132949
South Ribble Council,http://statistics.data.gov.uk/doc/local-authority/30UN,Area 3 - Parks/Leyland East West,Materials General,4040,15 x BioHaven Module 2 x 1 metres @ 235.20 each,11/10/2019,0000450179,"3,528.00",Revenue,Frog Environmental Ltd,132942
South Ribble Council,http://statistics.data.gov.uk/doc/local-authority/30UN,Area 3 - Parks/Leyland East West,Materials General,4040,2 x 1 mere pre-established planting mat with native emergent plants to cover single BioHaven module @51.40 each,11/10/2019,0000450179,771.00,Revenue,Frog Environmental Ltd,132942
South Ribble Council,http://statistics.data.gov.uk/doc/local-authority/30UN,Area 3 - Parks/Leyland East West,Materials General,4040,Carriage charge,11/10/2019,0000450179,220.20,Revenue,Frog Environmental Ltd,132942
South Ribble Council,http://statistics.data.gov.uk/doc/local-authority/30UN,Property Services,Rep & Maint Premises,2020,Please repair the security gates to the rear of Leyland Leisure Centre.,11/10/2019,0000450120,70.00,Revenue,G S F (Lancs) Ltd,131474
South Ribble Council,http://statistics.data.gov.uk/doc/local-authority/30UN,Property Services,Rep & Maint Premises,2020,Please supply a cover ladder for drains for front of the MOT garage doors. access will be required while concrete sets. Lifting hole and delivery to  SRBC Moss Side depot,11/10/2019,0000450120,720.00,Revenue,G S F (Lancs) Ltd,131474
South Ribble Council,http://statistics.data.gov.uk/doc/local-authority/30UN,Environmental Health,Agency Fees,1121,Last 2 invoices for W/E 8.9.19 & 11.9.18 for NAME REDACTED.,02/10/2019,0000449554,768.00,Revenue,G2 Recruitment Solutions,132684
South Ribble Council,http://statistics.data.gov.uk/doc/local-authority/30UN,Environmental Health,Agency Fees,1121,Last 2 invoices for W/E 8.9.19 & 11.9.18 for NAME REDACTED.,02/10/2019,0000449738,512.00,Revenue,G2 Recruitment Solutions,132684
South Ribble Council,http://statistics.data.gov.uk/doc/local-authority/30UN,Legal,Legal,4821,ADVICE IN RESPECT OF THE IMPLEMENTATION OF COUNCIL TAX REDUCTION SCHEME 2020/2021,02/10/2019,0000449755,"1,600.00",Revenue,GALINA WARD,132897
South Ribble Council,http://statistics.data.gov.uk/doc/local-authority/30UN,Healthy Communities,Professional Fees,4510,Bikeability Tutor Training Cover October  2019 500.00,18/10/2019,0000450348,375.00,Revenue,Gareth Piper,132576
South Ribble Council,http://statistics.data.gov.uk/doc/local-authority/30UN,Area 2 - Waste Transport/Eastern & Central Teams,Materials General,4040,1 X R/H FLAIL SKID TMR02A3 JFC 13057,16/10/2019,0000449883,246.00,Revenue,GIBSONS GARDEN MACHINERY LTD,00059051
South Ribble Council,http://statistics.data.gov.uk/doc/local-authority/30UN,Area 2 - Waste Transport/Eastern & Central Teams,Materials General,4040,carriage,16/10/2019,0000449883,15.00,Revenue,GIBSONS GARDEN MACHINERY LTD,00059051
South Ribble Council,http://statistics.data.gov.uk/doc/local-authority/30UN,Area 2 - Waste Transport/Eastern & Central Teams,Materials General,4040,4 x BEARINGS - 2 X CIR CLIPS + 1 X SWITCH - TMR02A3 - JFC13310,24/10/2019,0000450254,338.84,Revenue,GIBSONS GARDEN MACHINERY LTD,00059051
South Ribble Council,http://statistics.data.gov.uk/doc/local-authority/30UN,Shared Financial Services,Professional Fees,4512,South Ribble Borough Council Main Audit Fee 2019-20,02/10/2019,0000449406,"8,455.25",Revenue,Grant Thornton UK LLP,130718
South Ribble Council,http://statistics.data.gov.uk/doc/local-authority/30UN,Area 1 - Penwortham Western Parishes,Materials General,4040,LINE 100MM YELLOW X 120,24/10/2019,0000450260,224.40,Revenue,Grassmats Ltd t/a Thermmark,132892
South Ribble Council,http://statistics.data.gov.uk/doc/local-authority/30UN,Area 1 - Penwortham Western Parishes,Materials General,4040,PRIMER & DELIVERY,24/10/2019,0000450260,65.00,Revenue,Grassmats Ltd t/a Thermmark,132892
South Ribble Council,http://statistics.data.gov.uk/doc/local-authority/30UN,Shared Financial Services,Pensions Increase Act Payments,1701,Rechargeable Pension Costs 2019-20,11/10/2019,0000450141,"6,735.70",Revenue,GREATER MANCHESTER PENSION F,00022538
South Ribble Council,http://statistics.data.gov.uk/doc/local-authority/30UN,Revenues Plus,Professional Fees,4510,Bankruptcy Charging Order,24/10/2019,0000450532,394.00,Revenue,Greenhalgh Kerr,132061
South Ribble Council,http://statistics.data.gov.uk/doc/local-authority/30UN,Revenues Plus,Professional Fees,4510,,24/10/2019,0000450532,214.00,Revenue,Greenhalgh Kerr,132061
South Ribble Council,http://statistics.data.gov.uk/doc/local-authority/30UN,Area 3 - Parks/Leyland East West,Grounds Maint Cntrctrs Chgs,4657,Repair & Covering of rubber safer surface with childsplay surfacing - colours as per tender document.,16/10/2019,0000449632,"15,000.00",Revenue,GROUNDWORK LEISURE SERVICES ,130104
South Ribble Council,http://statistics.data.gov.uk/doc/local-authority/30UN,Area 3 - Parks/Leyland East West,Grounds Maint Cntrctrs Chgs,4657,Repair & Covering of rubber safer surface with childsplay surfacing - colours as per tender document.,16/10/2019,0000449632,"7,500.00",Revenue,GROUNDWORK LEISURE SERVICES ,130104
South Ribble Council,http://statistics.data.gov.uk/doc/local-authority/30UN,Area 3 - Parks/Leyland East West,Grounds Maint Cntrctrs Chgs,4657,Repair & Covering of rubber safer surface with childsplay surfacing - colours as per tender document.,16/10/2019,0000449632,"7,500.00",Revenue,GROUNDWORK LEISURE SERVICES ,130104
South Ribble Council,http://statistics.data.gov.uk/doc/local-authority/30UN,Area 2 - Waste Transport/Eastern & Central Teams,Materials General,4040,Filters for stores,24/10/2019,0000450263,353.29,Revenue,H & J SERVICES LTD,00114446
South Ribble Council,http://statistics.data.gov.uk/doc/local-authority/30UN,Neighbourhood Admin & Support,Vehicle Running Costs,3132,17500LT X DIESEL (TANK 1) @ 103.81 PPL,02/10/2019,0000449767,"15,081.45",Revenue,Hall Fuels trading name of WFL (UK) Ltd,00116758
South Ribble Council,http://statistics.data.gov.uk/doc/local-authority/30UN,Neighbourhood Admin & Support,Vehicle Running Costs,3134,2000LT X GAS OIL (TANK 2) @ 59.10 PPL,02/10/2019,0000449892,"1,182.00",Revenue,Hall Fuels trading name of WFL (UK) Ltd,00116758
South Ribble Council,http://statistics.data.gov.uk/doc/local-authority/30UN,Shared Assurance Services,Agency Fees,1121,Provision of a temporary Auditor,02/10/2019,0000449328,"1,491.48",Revenue,Hays Specialist Recruitment Ltd,132288
South Ribble Council,http://statistics.data.gov.uk/doc/local-authority/30UN,Shared Assurance Services,Agency Fees,1121,Provision of a temporary Auditor,02/10/2019,0000449329,"1,491.48",Revenue,Hays Specialist Recruitment Ltd,132288
South Ribble Council,http://statistics.data.gov.uk/doc/local-authority/30UN,Shared Assurance Services,Agency Fees,1121,NAME REDACTED - Temporary Head of Shared Assurance Services for week ending period 19/04/2019 - 01/11/2019 ,02/10/2019,0000449606,"1,390.07",Revenue,Hays Specialist Recruitment Ltd,132288
South Ribble Council,http://statistics.data.gov.uk/doc/local-authority/30UN,Shared Assurance Services,Agency Fees,1121,NAME REDACTED - Temporary Head of Shared Assurance Services for week ending period 19/04/2019 - 01/11/2019 ,02/10/2019,0000449607,"2,490.05",Revenue,Hays Specialist Recruitment Ltd,132288
South Ribble Council,http://statistics.data.gov.uk/doc/local-authority/30UN,Shared Assurance Services,Agency Fees,1121,NAME REDACTED - Temporary Head of Shared Assurance Services for week ending period 19/04/2019 - 01/11/2019 ,02/10/2019,0000449608,"2,180.37",Revenue,Hays Specialist Recruitment Ltd,132288
South Ribble Council,http://statistics.data.gov.uk/doc/local-authority/30UN,Shared Assurance Services,Agency Fees,1121,Provision of a temporary Auditor,02/10/2019,0000449834,915.60,Revenue,Hays Specialist Recruitment Ltd,132288
South Ribble Council,http://statistics.data.gov.uk/doc/local-authority/30UN,Shared Assurance Services,Agency Fees,1121,Provision of a temporary Auditor,02/10/2019,0000449835,"1,035.76",Revenue,Hays Specialist Recruitment Ltd,132288
South Ribble Council,http://statistics.data.gov.uk/doc/local-authority/30UN,Shared Assurance Services,Agency Fees,1121,Provision of a temporary Auditor,02/10/2019,0000449836,"1,545.34",Revenue,Hays Specialist Recruitment Ltd,132288
South Ribble Council,http://statistics.data.gov.uk/doc/local-authority/30UN,Shared Assurance Services,Agency Fees,1121,Provision of a temporary Auditor,02/10/2019,0000449953,"1,450.05",Revenue,Hays Specialist Recruitment Ltd,132288
South Ribble Council,http://statistics.data.gov.uk/doc/local-authority/30UN,Shared Assurance Services,Agency Fees,1121,Provision of a temporary Auditor,02/10/2019,0000449965,870.03,Revenue,Hays Specialist Recruitment Ltd,132288
South Ribble Council,http://statistics.data.gov.uk/doc/local-authority/30UN,Shared Assurance Services,Agency Fees,1121,Provision of a temporary Auditor,02/10/2019,0000449966,"1,164.19",Revenue,Hays Specialist Recruitment Ltd,132288
South Ribble Council,http://statistics.data.gov.uk/doc/local-authority/30UN,Shared Assurance Services,Agency Fees,1121,Provision of a temporary Auditor,16/10/2019,0000450243,"1,470.77",Revenue,Hays Specialist Recruitment Ltd,132288
South Ribble Council,http://statistics.data.gov.uk/doc/local-authority/30UN,Shared Assurance Services,Agency Fees,1121,NAME REDACTED - Temporary Head of Shared Assurance Services for week ending period 19/04/2019 - 01/11/2019 ,22/10/2019,0000450329,"2,372.05",Revenue,Hays Specialist Recruitment Ltd,132288
South Ribble Council,http://statistics.data.gov.uk/doc/local-authority/30UN,Shared Assurance Services,Agency Fees,1121,NAME REDACTED - Temporary Head of Shared Assurance Services for week ending period 19/04/2019 - 01/11/2019 ,22/10/2019,0000450330,797.78,Revenue,Hays Specialist Recruitment Ltd,132288
South Ribble Council,http://statistics.data.gov.uk/doc/local-authority/30UN,Shared Assurance Services,Agency Fees,1121,NAME REDACTED - Temporary Head of Shared Assurance Services for week ending period 19/04/2019 - 01/11/2019 ,22/10/2019,0000450331,"2,222.97",Revenue,Hays Specialist Recruitment Ltd,132288
South Ribble Council,http://statistics.data.gov.uk/doc/local-authority/30UN,Shared Assurance Services,Agency Fees,1121,NAME REDACTED - Temporary Head of Shared Assurance Services for week ending period 19/04/2019 - 01/11/2019 ,22/10/2019,0000450332,"1,097.67",Revenue,Hays Specialist Recruitment Ltd,132288
South Ribble Council,http://statistics.data.gov.uk/doc/local-authority/30UN,Shared Assurance Services,Agency Fees,1121,Provision of a temporary Auditor,30/10/2019,0000450531,"1,118.62",Revenue,Hays Specialist Recruitment Ltd,132288
South Ribble Council,http://statistics.data.gov.uk/doc/local-authority/30UN,Shared Assurance Services,Agency Fees,1121,Provision of a temporary Auditor,30/10/2019,0000450533,"1,205.62",Revenue,Hays Specialist Recruitment Ltd,132288
South Ribble Council,http://statistics.data.gov.uk/doc/local-authority/30UN,Shared Assurance Services,Agency Fees,1121,Provision of a temporary Auditor,30/10/2019,0000450592,"1,367.19",Revenue,Hays Specialist Recruitment Ltd,132288
South Ribble Council,http://statistics.data.gov.uk/doc/local-authority/30UN,Shared Assurance Services,Agency Fees,1121,Provision of a temporary Auditor,30/10/2019,0000450596,"1,068.90",Revenue,Hays Specialist Recruitment Ltd,132288
South Ribble Council,http://statistics.data.gov.uk/doc/local-authority/30UN,Revenues Plus,Balance Sheet,0001,,24/10/2019,0000450489,333.00,Revenue,Heineken UK Limited,132745
South Ribble Council,http://statistics.data.gov.uk/doc/local-authority/30UN,Shared Financial Services,Balance Sheet,0140,,16/10/2019,0000449694,497.40,Revenue,HM REVENUE & CUSTOMS,00024837
South Ribble Council,http://statistics.data.gov.uk/doc/local-authority/30UN,Property Services,Rep & Maint Premises,2020,"Please attend the Civic Centre to replace the carpet tiles in the Audit office, HR Managers office & 2nd floor meeting room as per quotation ref JD/072",16/10/2019,0000450157,"1,984.00",Revenue,HYDE FLOORING CO LTD,00023605
South Ribble Council,http://statistics.data.gov.uk/doc/local-authority/30UN,Area 3 - Parks/Leyland East West,Capital Expenditure,C230,PRODUCTION OF TENDER DOCUMENTS AND TENDER ANALYSIS AND REPORT,30/10/2019,0000450581,"4,120.00",Revenue,Ian Brew QS Consultancy,132974
South Ribble Council,http://statistics.data.gov.uk/doc/local-authority/30UN,Information Services,Peripherals,4248,"Planning Inspections App maintenance and Development Enforcement App maintenance @ 643.35 each, for period 31/10/19 - 30/10/20, as per quote",02/10/2019,0000449587,"1,286.70",Revenue,IDOX PLC,00104485
South Ribble Council,http://statistics.data.gov.uk/doc/local-authority/30UN,Democratic Services,Other Misc,4970,"ESTIMATE ONLY FOR: IVR SET UP, IVR RESPONSE, DATA RELOAD, PRINT AND SETUP, PRINT AND SEND",02/10/2019,0000449865,"7,006.19",Revenue,IDOX PLC,00104485
South Ribble Council,http://statistics.data.gov.uk/doc/local-authority/30UN,Revenues Plus,Professional Fees,4510,"Analyse Local - GSU Landscapes, Penwortham and 502 Green Place, Bamber Bridge",02/10/2019,0000449878,"5,357.50",Revenue,Inform CPI Ltd,131666
South Ribble Council,http://statistics.data.gov.uk/doc/local-authority/30UN,Revenues Plus,Professional Fees,4510,"RV Finder - R/O Stanley Coppice, Coote Lane",11/10/2019,0000450203,400.00,Revenue,Inform CPI Ltd,131666
South Ribble Council,http://statistics.data.gov.uk/doc/local-authority/30UN,Revenues Plus,Professional Fees,4510,"RV Finder - M I Tech, Aston Way",24/10/2019,0000450469,"1,500.00",Revenue,Inform CPI Ltd,131666
South Ribble Council,http://statistics.data.gov.uk/doc/local-authority/30UN,Neighbourhood Admin & Support,Materials General,4040,PERMANENT POTHOLE REPAIR - TUB - Special,30/10/2019,0000450427,265.14,Revenue,INSTARMAC GROUP PLC,00024905
South Ribble Council,http://statistics.data.gov.uk/doc/local-authority/30UN,Neighbourhood Admin & Support,Materials General,4040,QC10 - QUICK SET CONCRETE,30/10/2019,0000450427,"1,228.64",Revenue,INSTARMAC GROUP PLC,00024905
South Ribble Council,http://statistics.data.gov.uk/doc/local-authority/30UN,Neighbourhood Admin & Support,Materials General,4040,SCJ BITUMEN COLD JOINT SEALER - BOX 12,30/10/2019,0000450427,118.68,Revenue,INSTARMAC GROUP PLC,00024905
South Ribble Council,http://statistics.data.gov.uk/doc/local-authority/30UN,Area 2 - Waste Transport/Eastern & Central Teams,Cap Vehicles,C440,VED,30/10/2019,0000449455,315.00,Revenue,Isuzu Truck (UK) Ltd,132794
South Ribble Council,http://statistics.data.gov.uk/doc/local-authority/30UN,Area 2 - Waste Transport/Eastern & Central Teams,Cap Vehicles,C440,To supply and deliver of two modified LGV tipper vehicles,30/10/2019,0000449455,"26,530.00",Revenue,Isuzu Truck (UK) Ltd,132794
South Ribble Council,http://statistics.data.gov.uk/doc/local-authority/30UN,Area 2 - Waste Transport/Eastern & Central Teams,Cap Vehicles,C440,VED,30/10/2019,0000449456,315.00,Revenue,Isuzu Truck (UK) Ltd,132794
South Ribble Council,http://statistics.data.gov.uk/doc/local-authority/30UN,Area 2 - Waste Transport/Eastern & Central Teams,Cap Vehicles,C440,To supply and deliver of two modified LGV tipper vehicles,30/10/2019,0000449456,"26,700.00",Revenue,Isuzu Truck (UK) Ltd,132794
South Ribble Council,http://statistics.data.gov.uk/doc/local-authority/30UN,Area 3 - Parks/Leyland East West,Grounds Maint Cntrctrs Chgs,4657,PLANNING APPLICATION FOR HURST GRANGE COACH,11/10/2019,0000450161,259.00,Revenue,IWA ARCHITECTS LTD,00120087
South Ribble Council,http://statistics.data.gov.uk/doc/local-authority/30UN,Area 3 - Parks/Leyland East West,Grounds Maint Cntrctrs Chgs,4657,"BUILDING CONTROL APPLICATION FEE FOR HURST GRANGE COACH HOUSE, PENWORTHAM",11/10/2019,0000450162,346.82,Revenue,IWA ARCHITECTS LTD,00120087
South Ribble Council,http://statistics.data.gov.uk/doc/local-authority/30UN,Property Services,Rep & Maint Premises,2020,Please attend Civic Centre and install water pipes for new water dispensers in the Conference Centre as discussed with NAME REDACTED,30/10/2019,0000450583,360.00,Revenue,J Whittle plumbing & heating,132695
South Ribble Council,http://statistics.data.gov.uk/doc/local-authority/30UN,Area 3 - Parks/Leyland East West,Materials General,4040,BIRD MOUTH CUT POSTS 100 X 100 X 900 @ 4.47 EACH,11/10/2019,0000450066,312.90,Revenue,JOHN HY MAYOR & SONS LTD,00028176
South Ribble Council,http://statistics.data.gov.uk/doc/local-authority/30UN,Area 3 - Parks/Leyland East West,Materials General,4040,RAILS 100 X 100 X 3.6M @ 11.88 EACH,11/10/2019,0000450066,475.20,Revenue,JOHN HY MAYOR & SONS LTD,00028176
South Ribble Council,http://statistics.data.gov.uk/doc/local-authority/30UN,Housing,Cap Grant- Improve Grants,C570,"DFG WORKS TO BATHROOM AT ADDRESS REDACTED, QUOTE SUPPLIED VIA PLACES FOR PEOPLE- FULL COST OF GRANT TO BE PAID VIA DFG 4010.00",16/10/2019,0000450298,"4,010.00",Revenue,John Southworth Builders Ltd,132916
South Ribble Council,http://statistics.data.gov.uk/doc/local-authority/30UN,Regeneration,Capital Expenditure,C230,"Interim Payment for the Leyand loop  38,512.00 of 77,466.00 Plus additional 1,461.20 Total value of works 23/10/2019",24/10/2019,0000450517,"39,973.20",Revenue,John Wade Groundworks Ltd t/a Wade Group,131568
South Ribble Council,http://statistics.data.gov.uk/doc/local-authority/30UN,Planning,Advertising,4841,Public notices for planning application to be published in the Lancashire Evening Post,24/10/2019,0000449933,891.00,Revenue,JPI Media - JOHNSTON PUBLISHING (,00011345
South Ribble Council,http://statistics.data.gov.uk/doc/local-authority/30UN,Planning,Advertising,4841,Public notices for planning application to be published in the Lancashire Evening Post,24/10/2019,0000449934,891.00,Revenue,JPI Media - JOHNSTON PUBLISHING (,00011345
South Ribble Council,http://statistics.data.gov.uk/doc/local-authority/30UN,Planning,Advertising,4841,Public notices for planning application to be published in the Lancashire Evening Post,24/10/2019,0000450211,729.00,Revenue,JPI Media - JOHNSTON PUBLISHING (,00011345
South Ribble Council,http://statistics.data.gov.uk/doc/local-authority/30UN,Area 3 - Parks/Leyland East West,Grounds Maint Cntrctrs Chgs,4657,1.5 tonne Excavator On hire 10th & 11th September 2019,30/10/2019,0000450089,250.00,Revenue,K H HIRE SERVICES,00012933
South Ribble Council,http://statistics.data.gov.uk/doc/local-authority/30UN,Neighbourhood Admin & Support,External Contractors Charges,4570,"Provide Traffic Management and carry out all grass cutting To Longton (L2), Samlesbury (L2) and end of M65, @ 3,500 per cut Second Cut in week commencing Monday ",30/10/2019,0000449918,"3,500.00",Revenue,KAYS TRAFFIC MANAGEMENT LTD,00072342
South Ribble Council,http://statistics.data.gov.uk/doc/local-authority/30UN,Area 1 - Penwortham Western Parishes,External Contractors Charges,4570,Traffic Management - Autumn By-pass Cleaning W/C 7.10.19 - 5 nights (18.00 until 02.00 approx.) W/C 14.10.19 - 2 days (09.00 until 15.00),24/10/2019,0000450498,"4,259.00",Revenue,KAYS TRAFFIC MANAGEMENT LTD,00072342
South Ribble Council,http://statistics.data.gov.uk/doc/local-authority/30UN,Housing,Cap Grant- Improve Grants,C570,DFG WORKS TO BATHROOM AT ADDRESS REDACTED AS PER QUOTE SUPPLIED OF 5295.00 TO BE COMPLETED PER SRBC SPECIFICATION TOTAL GRANT COST 5295.00,11/10/2019,0000450188,"2,720.00",Revenue,Keith Wright Plumbing - Heating - Gas Engineer,132868
South Ribble Council,http://statistics.data.gov.uk/doc/local-authority/30UN,Homelessness,Contributions,4730,6 months pre-tenancy training Oct 2019 - March 2020,11/10/2019,0000450070,"2,500.00",Revenue,KEY UNLOCKING FUTURES LTD,00098601
South Ribble Council,http://statistics.data.gov.uk/doc/local-authority/30UN,Homelessness,Contributions,4730,Housing advice and mediation Q3 October-December 2019/20,11/10/2019,0000450091,"4,875.00",Revenue,KEY UNLOCKING FUTURES LTD,00098601
South Ribble Council,http://statistics.data.gov.uk/doc/local-authority/30UN,Environmental Health,Materials General,4041,Mouse Traps (SNAP-E),18/10/2019,0000450145,115.00,Revenue,KILLGERM CHEMICALS LTD,00025894
South Ribble Council,http://statistics.data.gov.uk/doc/local-authority/30UN,Environmental Health,Materials General,4041,Rat Trap (BIG SNAP -E),18/10/2019,0000450145,64.50,Revenue,KILLGERM CHEMICALS LTD,00025894
South Ribble Council,http://statistics.data.gov.uk/doc/local-authority/30UN,Environmental Health,Materials General,4041,PX17 MICROPOT,18/10/2019,0000450145,32.60,Revenue,KILLGERM CHEMICALS LTD,00025894
South Ribble Council,http://statistics.data.gov.uk/doc/local-authority/30UN,Environmental Health,Materials General,4041,RODBAG SEAL,18/10/2019,0000450145,13.37,Revenue,KILLGERM CHEMICALS LTD,00025894
South Ribble Council,http://statistics.data.gov.uk/doc/local-authority/30UN,Environmental Health,Materials General,4041,RODBAGTAPE,18/10/2019,0000450145,2.61,Revenue,KILLGERM CHEMICALS LTD,00025894
South Ribble Council,http://statistics.data.gov.uk/doc/local-authority/30UN,Environmental Health,Materials General,4041,Personalised SOUTH RIBBLE LABELS,18/10/2019,0000450145,25.11,Revenue,KILLGERM CHEMICALS LTD,00025894
South Ribble Council,http://statistics.data.gov.uk/doc/local-authority/30UN,Environmental Health,Materials General,4041,Rodenticide Warning Labels,18/10/2019,0000450145,12.12,Revenue,KILLGERM CHEMICALS LTD,00025894
South Ribble Council,http://statistics.data.gov.uk/doc/local-authority/30UN,Environmental Health,Materials General,4041,Neosorexa 10kg (NEOG0010K),18/10/2019,0000450145,239.24,Revenue,KILLGERM CHEMICALS LTD,00025894
South Ribble Council,http://statistics.data.gov.uk/doc/local-authority/30UN,Environmental Health,Materials General,4041,Vertox WHOLE WHEAT (VERTWW020K),18/10/2019,0000450145,219.00,Revenue,KILLGERM CHEMICALS LTD,00025894
South Ribble Council,http://statistics.data.gov.uk/doc/local-authority/30UN,Environmental Health,Materials General,4041,1 x 1 litre PX Viribus,18/10/2019,0000450145,8.09,Revenue,KILLGERM CHEMICALS LTD,00025894
South Ribble Council,http://statistics.data.gov.uk/doc/local-authority/30UN,Environmental Health,Materials General,4041,CLUSTER BUSTER (CLUSTERBUST),24/10/2019,0000450375,117.20,Revenue,KILLGERM CHEMICALS LTD,00025894
South Ribble Council,http://statistics.data.gov.uk/doc/local-authority/30UN,Environmental Health,Materials General,4041,CHAMELEON 1X2 WHITE (CHA1X204),24/10/2019,0000450375,245.04,Revenue,KILLGERM CHEMICALS LTD,00025894
South Ribble Council,http://statistics.data.gov.uk/doc/local-authority/30UN,Environmental Health,Materials General,4041,FREE STANDING BRACKET (EF30STAND),24/10/2019,0000450375,20.97,Revenue,KILLGERM CHEMICALS LTD,00025894
South Ribble Council,http://statistics.data.gov.uk/doc/local-authority/30UN,Environmental Health,Materials General,4041,FLEXIBLE PROOFING MESH 50mm x 20 metres (FLEXIMESH50MM),24/10/2019,0000450375,37.95,Revenue,KILLGERM CHEMICALS LTD,00025894
South Ribble Council,http://statistics.data.gov.uk/doc/local-authority/30UN,Planning,Professional Fees,4510,"Open space, sport and recreation assessment Additional Housing growth",11/10/2019,0000450219,"1,100.00",Revenue,KNIGHT KAVANAGH & PAGE LTD,131981
South Ribble Council,http://statistics.data.gov.uk/doc/local-authority/30UN,Property Services,Rep & Maint Premises,2020,2019 / 2020 contract for water hygiene monitoring at Gregson Lane Pavilion,18/10/2019,0000450214,46.25,Revenue,KNOWSLEY BLD & ENVIRONMENTAL SERVICES LT,00072656
South Ribble Council,http://statistics.data.gov.uk/doc/local-authority/30UN,Property Services,Rep & Maint Premises,2020,2019 / 2020 contract for water hygiene monitoring at Hern Avenue Pavilion,18/10/2019,0000450214,46.25,Revenue,KNOWSLEY BLD & ENVIRONMENTAL SERVICES LT,00072656
South Ribble Council,http://statistics.data.gov.uk/doc/local-authority/30UN,Property Services,Rep & Maint Premises,2020,2019 / 2020 contract for water hygiene monitoring at Higher Walton Pavilion,18/10/2019,0000450214,46.25,Revenue,KNOWSLEY BLD & ENVIRONMENTAL SERVICES LT,00072656
South Ribble Council,http://statistics.data.gov.uk/doc/local-authority/30UN,Property Services,Rep & Maint Premises,2020,2019 / 2020 contract for water hygiene monitoring at Holme Pavilion,18/10/2019,0000450214,46.25,Revenue,KNOWSLEY BLD & ENVIRONMENTAL SERVICES LT,00072656
South Ribble Council,http://statistics.data.gov.uk/doc/local-authority/30UN,Property Services,Rep & Maint Premises,2020,2019 / 2020 contract for water hygiene monitoring at Hutton Pavilion,18/10/2019,0000450214,46.25,Revenue,KNOWSLEY BLD & ENVIRONMENTAL SERVICES LT,00072656
South Ribble Council,http://statistics.data.gov.uk/doc/local-authority/30UN,Property Services,Rep & Maint Premises,2020,2019 / 2020 contract for water hygiene monitoring at Kingsfold pavilion,18/10/2019,0000450214,54.00,Revenue,KNOWSLEY BLD & ENVIRONMENTAL SERVICES LT,00072656
South Ribble Council,http://statistics.data.gov.uk/doc/local-authority/30UN,Property Services,Rep & Maint Premises,2020,2019 / 2020 contract for water hygiene monitoring at sports pavilions Worden Park (formerly long pavilion),18/10/2019,0000450214,46.25,Revenue,KNOWSLEY BLD & ENVIRONMENTAL SERVICES LT,00072656
South Ribble Council,http://statistics.data.gov.uk/doc/local-authority/30UN,Property Services,Rep & Maint Premises,2020,2019 / 2020 contract for water hygiene monitoring at Moss Side Pavilion,18/10/2019,0000450214,54.00,Revenue,KNOWSLEY BLD & ENVIRONMENTAL SERVICES LT,00072656
South Ribble Council,http://statistics.data.gov.uk/doc/local-authority/30UN,Property Services,Rep & Maint Premises,2020,2019 / 2020 contract for water hygiene monitoring at Much Hoole Pavilion,18/10/2019,0000450214,46.25,Revenue,KNOWSLEY BLD & ENVIRONMENTAL SERVICES LT,00072656
South Ribble Council,http://statistics.data.gov.uk/doc/local-authority/30UN,Property Services,Rep & Maint Premises,2020,2019 / 2020 contract for water hygiene monitoring at Penwortham Holme,18/10/2019,0000450214,46.25,Revenue,KNOWSLEY BLD & ENVIRONMENTAL SERVICES LT,00072656
South Ribble Council,http://statistics.data.gov.uk/doc/local-authority/30UN,Property Services,Rep & Maint Premises,2020,2019 / 2020 contract for water hygiene monitoring at St Cuthbert`s Pavilion,18/10/2019,0000450214,46.25,Revenue,KNOWSLEY BLD & ENVIRONMENTAL SERVICES LT,00072656
South Ribble Council,http://statistics.data.gov.uk/doc/local-authority/30UN,Property Services,Rep & Maint Premises,2020,2019 / 2020 contract for water hygiene monitoring at Withy Grove Pavilion,18/10/2019,0000450214,54.00,Revenue,KNOWSLEY BLD & ENVIRONMENTAL SERVICES LT,00072656
South Ribble Council,http://statistics.data.gov.uk/doc/local-authority/30UN,Property Services,Rep & Maint Premises,2020,2019 / 2020 contract for water hygiene monitoring at Holland House Farm Pavilion,18/10/2019,0000450214,46.25,Revenue,KNOWSLEY BLD & ENVIRONMENTAL SERVICES LT,00072656
South Ribble Council,http://statistics.data.gov.uk/doc/local-authority/30UN,Property Services,Rep & Maint Premises,2020,"2019 / 2020 contract for water hygiene monitoring at The Derby Wing, Worden Park",18/10/2019,0000450214,43.75,Revenue,KNOWSLEY BLD & ENVIRONMENTAL SERVICES LT,00072656
South Ribble Council,http://statistics.data.gov.uk/doc/local-authority/30UN,Property Services,Rep & Maint Premises,2020,2019 / 2020 contract for water hygiene monitoring at Carr Street Community Centre,18/10/2019,0000450214,43.75,Revenue,KNOWSLEY BLD & ENVIRONMENTAL SERVICES LT,00072656
South Ribble Council,http://statistics.data.gov.uk/doc/local-authority/30UN,Property Services,Rep & Maint Premises,2020,2019 / 2020 contract for water hygiene monitoring at Higher Walton Community Centre,18/10/2019,0000450214,43.75,Revenue,KNOWSLEY BLD & ENVIRONMENTAL SERVICES LT,00072656
South Ribble Council,http://statistics.data.gov.uk/doc/local-authority/30UN,Property Services,Rep & Maint Premises,2020,2019 / 2020 contract for water hygiene monitoring at Moss Side Community Centre,18/10/2019,0000450214,43.75,Revenue,KNOWSLEY BLD & ENVIRONMENTAL SERVICES LT,00072656
South Ribble Council,http://statistics.data.gov.uk/doc/local-authority/30UN,Property Services,Rep & Maint Premises,2020,2019 / 2020 contract for water hygiene monitoring at Worden Arts & Craft Centre,18/10/2019,0000450214,59.25,Revenue,KNOWSLEY BLD & ENVIRONMENTAL SERVICES LT,00072656
South Ribble Council,http://statistics.data.gov.uk/doc/local-authority/30UN,Property Services,Rep & Maint Premises,2020,2019 /2020 contract for water hygiene monitoring at Leyland Market,18/10/2019,0000450214,43.75,Revenue,KNOWSLEY BLD & ENVIRONMENTAL SERVICES LT,00072656
South Ribble Council,http://statistics.data.gov.uk/doc/local-authority/30UN,Property Services,Rep & Maint Premises,2020,2019 / 2020  contract for water hygiene monitoring at Hurst Grange Park,18/10/2019,0000450214,43.75,Revenue,KNOWSLEY BLD & ENVIRONMENTAL SERVICES LT,00072656
South Ribble Council,http://statistics.data.gov.uk/doc/local-authority/30UN,Property Services,Rep & Maint Premises,2020,"2019 / 2020 contract for water hygiene monitoring at Crossroads toilets, Worden Park",18/10/2019,0000450214,23.25,Revenue,KNOWSLEY BLD & ENVIRONMENTAL SERVICES LT,00072656
South Ribble Council,http://statistics.data.gov.uk/doc/local-authority/30UN,Property Services,Rep & Maint Premises,2020,2019 / 2020 contract for water hygiene monitoring at Hope Terrace Public toilets,18/10/2019,0000450214,23.25,Revenue,KNOWSLEY BLD & ENVIRONMENTAL SERVICES LT,00072656
South Ribble Council,http://statistics.data.gov.uk/doc/local-authority/30UN,Property Services,Rep & Maint Premises,2020,2019 / 2020 contract for water hygiene monitoring at Longton Brick Croft,18/10/2019,0000450214,26.25,Revenue,KNOWSLEY BLD & ENVIRONMENTAL SERVICES LT,00072656
South Ribble Council,http://statistics.data.gov.uk/doc/local-authority/30UN,Property Services,Rep & Maint Premises,2020,"2019 / 2020 contract for water hygiene monitoring at Playground toilets, Worden Park",18/10/2019,0000450214,26.25,Revenue,KNOWSLEY BLD & ENVIRONMENTAL SERVICES LT,00072656
South Ribble Council,http://statistics.data.gov.uk/doc/local-authority/30UN,Property Services,Rep & Maint Premises,2020,2019 / 2020 contract for water hygiene monitoring at SR Museum & Exhibition Centre,18/10/2019,0000450214,26.25,Revenue,KNOWSLEY BLD & ENVIRONMENTAL SERVICES LT,00072656
South Ribble Council,http://statistics.data.gov.uk/doc/local-authority/30UN,Property Services,Rep & Maint Premises,2020,2019 / 2020 contract for water hygiene monitoring at Withy Grove public toilets,18/10/2019,0000450214,23.25,Revenue,KNOWSLEY BLD & ENVIRONMENTAL SERVICES LT,00072656
South Ribble Council,http://statistics.data.gov.uk/doc/local-authority/30UN,Property Services,Rep & Maint Premises,2020,"2019 / 2020 contract for water hygiene monitoring at the Civic Centre, Leyland",18/10/2019,0000450214,185.75,Revenue,KNOWSLEY BLD & ENVIRONMENTAL SERVICES LT,00072656
South Ribble Council,http://statistics.data.gov.uk/doc/local-authority/30UN,Property Services,Rep & Maint Premises,2020,2019 / 2020 contract for water hygiene monitoring at Moss Side Depot,18/10/2019,0000450214,112.75,Revenue,KNOWSLEY BLD & ENVIRONMENTAL SERVICES LT,00072656
South Ribble Council,http://statistics.data.gov.uk/doc/local-authority/30UN,Property Services,Rep & Maint Premises,2020,2019 / 2020 contract for water hygiene monitoring at Longton Pavilion,18/10/2019,0000450214,46.25,Revenue,KNOWSLEY BLD & ENVIRONMENTAL SERVICES LT,00072656
South Ribble Council,http://statistics.data.gov.uk/doc/local-authority/30UN,Property Services,Rep & Maint Premises,2020,Additional 6 monthly sampling at Moss Side Depot,18/10/2019,0000450214,30.00,Revenue,KNOWSLEY BLD & ENVIRONMENTAL SERVICES LT,00072656
South Ribble Council,http://statistics.data.gov.uk/doc/local-authority/30UN,Property Services,Rep & Maint Premises,2020,2019 / 2020 contract for water hygiene monitoring at Gregson Lane Pavilion,18/10/2019,0000450234,46.25,Revenue,KNOWSLEY BLD & ENVIRONMENTAL SERVICES LT,00072656
South Ribble Council,http://statistics.data.gov.uk/doc/local-authority/30UN,Property Services,Rep & Maint Premises,2020,2019 / 2020 contract for water hygiene monitoring at Hern Avenue Pavilion,18/10/2019,0000450234,46.25,Revenue,KNOWSLEY BLD & ENVIRONMENTAL SERVICES LT,00072656
South Ribble Council,http://statistics.data.gov.uk/doc/local-authority/30UN,Property Services,Rep & Maint Premises,2020,2019 / 2020 contract for water hygiene monitoring at Higher Walton Pavilion,18/10/2019,0000450234,46.25,Revenue,KNOWSLEY BLD & ENVIRONMENTAL SERVICES LT,00072656
South Ribble Council,http://statistics.data.gov.uk/doc/local-authority/30UN,Property Services,Rep & Maint Premises,2020,2019 / 2020 contract for water hygiene monitoring at Holme Pavilion,18/10/2019,0000450234,46.25,Revenue,KNOWSLEY BLD & ENVIRONMENTAL SERVICES LT,00072656
South Ribble Council,http://statistics.data.gov.uk/doc/local-authority/30UN,Property Services,Rep & Maint Premises,2020,2019 / 2020 contract for water hygiene monitoring at Hutton Pavilion,18/10/2019,0000450234,46.25,Revenue,KNOWSLEY BLD & ENVIRONMENTAL SERVICES LT,00072656
South Ribble Council,http://statistics.data.gov.uk/doc/local-authority/30UN,Property Services,Rep & Maint Premises,2020,2019 / 2020 contract for water hygiene monitoring at Kingsfold pavilion,18/10/2019,0000450234,54.00,Revenue,KNOWSLEY BLD & ENVIRONMENTAL SERVICES LT,00072656
South Ribble Council,http://statistics.data.gov.uk/doc/local-authority/30UN,Property Services,Rep & Maint Premises,2020,2019 / 2020 contract for water hygiene monitoring at sports pavilions Worden Park (formerly long pavilion),18/10/2019,0000450234,46.25,Revenue,KNOWSLEY BLD & ENVIRONMENTAL SERVICES LT,00072656
South Ribble Council,http://statistics.data.gov.uk/doc/local-authority/30UN,Property Services,Rep & Maint Premises,2020,2019 / 2020 contract for water hygiene monitoring at Moss Side Pavilion,18/10/2019,0000450234,54.00,Revenue,KNOWSLEY BLD & ENVIRONMENTAL SERVICES LT,00072656
South Ribble Council,http://statistics.data.gov.uk/doc/local-authority/30UN,Property Services,Rep & Maint Premises,2020,2019 / 2020 contract for water hygiene monitoring at Much Hoole Pavilion,18/10/2019,0000450234,46.25,Revenue,KNOWSLEY BLD & ENVIRONMENTAL SERVICES LT,00072656
South Ribble Council,http://statistics.data.gov.uk/doc/local-authority/30UN,Property Services,Rep & Maint Premises,2020,2019 / 2020 contract for water hygiene monitoring at Penwortham Holme,18/10/2019,0000450234,46.25,Revenue,KNOWSLEY BLD & ENVIRONMENTAL SERVICES LT,00072656
South Ribble Council,http://statistics.data.gov.uk/doc/local-authority/30UN,Property Services,Rep & Maint Premises,2020,2019 / 2020 contract for water hygiene monitoring at St Cuthbert`s Pavilion,18/10/2019,0000450234,46.25,Revenue,KNOWSLEY BLD & ENVIRONMENTAL SERVICES LT,00072656
South Ribble Council,http://statistics.data.gov.uk/doc/local-authority/30UN,Property Services,Rep & Maint Premises,2020,2019 / 2020 contract for water hygiene monitoring at Withy Grove Pavilion,18/10/2019,0000450234,54.00,Revenue,KNOWSLEY BLD & ENVIRONMENTAL SERVICES LT,00072656
South Ribble Council,http://statistics.data.gov.uk/doc/local-authority/30UN,Property Services,Rep & Maint Premises,2020,2019 / 2020 contract for water hygiene monitoring at Holland House Farm Pavilion,18/10/2019,0000450234,46.25,Revenue,KNOWSLEY BLD & ENVIRONMENTAL SERVICES LT,00072656
South Ribble Council,http://statistics.data.gov.uk/doc/local-authority/30UN,Property Services,Rep & Maint Premises,2020,"2019 / 2020 contract for water hygiene monitoring at The Derby Wing, Worden Park",18/10/2019,0000450234,43.75,Revenue,KNOWSLEY BLD & ENVIRONMENTAL SERVICES LT,00072656
South Ribble Council,http://statistics.data.gov.uk/doc/local-authority/30UN,Property Services,Rep & Maint Premises,2020,2019 / 2020 contract for water hygiene monitoring at Carr Street Community Centre,18/10/2019,0000450234,43.75,Revenue,KNOWSLEY BLD & ENVIRONMENTAL SERVICES LT,00072656
South Ribble Council,http://statistics.data.gov.uk/doc/local-authority/30UN,Property Services,Rep & Maint Premises,2020,2019 / 2020 contract for water hygiene monitoring at Higher Walton Community Centre,18/10/2019,0000450234,43.75,Revenue,KNOWSLEY BLD & ENVIRONMENTAL SERVICES LT,00072656
South Ribble Council,http://statistics.data.gov.uk/doc/local-authority/30UN,Property Services,Rep & Maint Premises,2020,2019 / 2020 contract for water hygiene monitoring at Moss Side Community Centre,18/10/2019,0000450234,43.75,Revenue,KNOWSLEY BLD & ENVIRONMENTAL SERVICES LT,00072656
South Ribble Council,http://statistics.data.gov.uk/doc/local-authority/30UN,Property Services,Rep & Maint Premises,2020,2019 / 2020 contract for water hygiene monitoring at Worden Arts & Craft Centre,18/10/2019,0000450234,59.25,Revenue,KNOWSLEY BLD & ENVIRONMENTAL SERVICES LT,00072656
South Ribble Council,http://statistics.data.gov.uk/doc/local-authority/30UN,Property Services,Rep & Maint Premises,2020,2019 /2020 contract for water hygiene monitoring at Leyland Market,18/10/2019,0000450234,43.75,Revenue,KNOWSLEY BLD & ENVIRONMENTAL SERVICES LT,00072656
South Ribble Council,http://statistics.data.gov.uk/doc/local-authority/30UN,Property Services,Rep & Maint Premises,2020,2019 / 2020  contract for water hygiene monitoring at Hurst Grange Park,18/10/2019,0000450234,43.75,Revenue,KNOWSLEY BLD & ENVIRONMENTAL SERVICES LT,00072656
South Ribble Council,http://statistics.data.gov.uk/doc/local-authority/30UN,Property Services,Rep & Maint Premises,2020,"2019 / 2020 contract for water hygiene monitoring at Crossroads toilets, Worden Park",18/10/2019,0000450234,23.25,Revenue,KNOWSLEY BLD & ENVIRONMENTAL SERVICES LT,00072656
South Ribble Council,http://statistics.data.gov.uk/doc/local-authority/30UN,Property Services,Rep & Maint Premises,2020,2019 / 2020 contract for water hygiene monitoring at Hope Terrace Public toilets,18/10/2019,0000450234,23.25,Revenue,KNOWSLEY BLD & ENVIRONMENTAL SERVICES LT,00072656
South Ribble Council,http://statistics.data.gov.uk/doc/local-authority/30UN,Property Services,Rep & Maint Premises,2020,2019 / 2020 contract for water hygiene monitoring at Longton Brick Croft,18/10/2019,0000450234,26.25,Revenue,KNOWSLEY BLD & ENVIRONMENTAL SERVICES LT,00072656
South Ribble Council,http://statistics.data.gov.uk/doc/local-authority/30UN,Property Services,Rep & Maint Premises,2020,"2019 / 2020 contract for water hygiene monitoring at Playground toilets, Worden Park",18/10/2019,0000450234,26.25,Revenue,KNOWSLEY BLD & ENVIRONMENTAL SERVICES LT,00072656
South Ribble Council,http://statistics.data.gov.uk/doc/local-authority/30UN,Property Services,Rep & Maint Premises,2020,2019 / 2020 contract for water hygiene monitoring at SR Museum & Exhibition Centre,18/10/2019,0000450234,26.25,Revenue,KNOWSLEY BLD & ENVIRONMENTAL SERVICES LT,00072656
South Ribble Council,http://statistics.data.gov.uk/doc/local-authority/30UN,Property Services,Rep & Maint Premises,2020,2019 / 2020 contract for water hygiene monitoring at Withy Grove public toilets,18/10/2019,0000450234,23.25,Revenue,KNOWSLEY BLD & ENVIRONMENTAL SERVICES LT,00072656
South Ribble Council,http://statistics.data.gov.uk/doc/local-authority/30UN,Property Services,Rep & Maint Premises,2020,"2019 / 2020 contract for water hygiene monitoring at the Civic Centre, Leyland",18/10/2019,0000450234,185.75,Revenue,KNOWSLEY BLD & ENVIRONMENTAL SERVICES LT,00072656
South Ribble Council,http://statistics.data.gov.uk/doc/local-authority/30UN,Property Services,Rep & Maint Premises,2020,2019 / 2020 contract for water hygiene monitoring at Moss Side Depot,18/10/2019,0000450234,112.75,Revenue,KNOWSLEY BLD & ENVIRONMENTAL SERVICES LT,00072656
South Ribble Council,http://statistics.data.gov.uk/doc/local-authority/30UN,Property Services,Rep & Maint Premises,2020,2019 / 2020 contract for water hygiene monitoring at Longton Pavilion,18/10/2019,0000450234,46.25,Revenue,KNOWSLEY BLD & ENVIRONMENTAL SERVICES LT,00072656
South Ribble Council,http://statistics.data.gov.uk/doc/local-authority/30UN,Property Services,Rep & Maint Premises,2020,Additional 6 monthly sampling at Moss Side Depot,18/10/2019,0000450234,30.00,Revenue,KNOWSLEY BLD & ENVIRONMENTAL SERVICES LT,00072656
South Ribble Council,http://statistics.data.gov.uk/doc/local-authority/30UN,Property Services,Professional Fees,4510,Investment Property Strategy 2018/19,09/10/2019,0000450026,"3,200.00",Revenue,Lambert Smith Hampton Investment Ma,132594
South Ribble Council,http://statistics.data.gov.uk/doc/local-authority/30UN,Shared Financial Services,Professional Fees,4520,Main IAS 19 Work,11/10/2019,0000448187,533.00,Revenue,LANCASHIRE COUNTY COUNCIL PEN,130639
South Ribble Council,http://statistics.data.gov.uk/doc/local-authority/30UN,Shared Financial Services,Professional Fees,4520,Additional IAS work re NAME REDACTED,11/10/2019,0000448187,200.00,Revenue,LANCASHIRE COUNTY COUNCIL PEN,130639
South Ribble Council,http://statistics.data.gov.uk/doc/local-authority/30UN,Area 2 - Waste Transport/Eastern & Central Teams,Materials General,4040,1 X 205LT DRUM GEAR OIL 80/90W GL5 @ 1.44 PPL,02/10/2019,0000449844,295.20,Revenue,LANCASHIRE OILS LTD,131167
South Ribble Council,http://statistics.data.gov.uk/doc/local-authority/30UN,Area 2 - Waste Transport/Eastern & Central Teams,Contract Hire & Lease Costs,3212,Hire of 26T Split body RCV,24/10/2019,0000450315,980.00,Revenue,Lancashire Waste Services Limited,131510
South Ribble Council,http://statistics.data.gov.uk/doc/local-authority/30UN,Area 2 - Waste Transport/Eastern & Central Teams,Contractors Charges 5,5412,"Quarter 1 Disposal Fee, Landfill Tax & 5% Admin Fee",16/10/2019,0000450049,"55,538.37",Revenue,LANCS COUNTY COUNCIL,00041645
South Ribble Council,http://statistics.data.gov.uk/doc/local-authority/30UN,Housing,Cap Grant- Improve Grants,C570,DFG WORKS TO SUPPLY AND INSTALL A STARILIFT AS PER QUOTE SUPPLIED BY LCC OF 1268.00 COST 1268.00,11/10/2019,0000450163,"1,168.00",Revenue,LANCS COUNTY COUNCIL,00041645
South Ribble Council,http://statistics.data.gov.uk/doc/local-authority/30UN,Housing,Cap Grant- Improve Grants,C570,DFG WORKS TO SUPPLY AND INSTALL A STAIRLIFT AT NAME REDACTED AS PER QUOTE SUPPLIED OF 6193.00 CLIENT CONTRIBUTION OF 655.79 COST 5537.21,11/10/2019,0000450182,"5,537.21",Revenue,LANCS COUNTY COUNCIL,00041645
South Ribble Council,http://statistics.data.gov.uk/doc/local-authority/30UN,Legal,Other Local Authorities,4530,LAND CHARGES - SEPTEMBER 2019,18/10/2019,0000450257,973.50,Revenue,LANCS COUNTY COUNCIL,00041645
South Ribble Council,http://statistics.data.gov.uk/doc/local-authority/30UN,HR & Communications,Other Local Authorities,4531,PAYROLL SERVICES - OCTOBER - DECEMBER 2019,16/10/2019,0000450259,"5,750.00",Revenue,LANCS COUNTY COUNCIL,00041645
South Ribble Council,http://statistics.data.gov.uk/doc/local-authority/30UN,Housing,Cap Grant- Improve Grants,C570,DFG WORKS TO SUPPLY AND INSTALL A STAIRLIFT AT NAME REDACTED AS PER QUOTE SUPPLIED OF 3289.00 TOTAL COST OF GRANT 3289.00,16/10/2019,0000450299,"3,289.00",Revenue,LANCS COUNTY COUNCIL,00041645
South Ribble Council,http://statistics.data.gov.uk/doc/local-authority/30UN,Housing,Cap Grant- Improve Grants,C570,DFG WORKS TO SUPPLY AND INSTALL STAIRLIFT AT ADDRESS REDACTED AS PER QUOTE SUPPLIED COST 7805.00,16/10/2019,0000450300,"7,805.00",Revenue,LANCS COUNTY COUNCIL,00041645
South Ribble Council,http://statistics.data.gov.uk/doc/local-authority/30UN,Housing,Cap Grant- Improve Grants,C570,DFG WORKS TO SUPPLY AND INSTALL EQUIPMENT AT ADDRESS REDACTED AS PER QUOTE SUPPLIED OF 4470.00 COST 4470.00,16/10/2019,0000450309,"4,470.00",Revenue,LANCS COUNTY COUNCIL,00041645
South Ribble Council,http://statistics.data.gov.uk/doc/local-authority/30UN,Area 1 - Penwortham Western Parishes,Professional Fees,4516,BACK OFFICE PROCESSING JULY - SEPTEMBER 2019 182 PCN @ 3.45,30/10/2019,0000450458,627.90,Revenue,LANCS COUNTY COUNCIL,00041645
South Ribble Council,http://statistics.data.gov.uk/doc/local-authority/30UN,Area 1 - Penwortham Western Parishes,Professional Fees,4516,TEC RECHARGES JULY - SEPTEMBER 2019 13 @ 8.00,30/10/2019,0000450458,104.00,Revenue,LANCS COUNTY COUNCIL,00041645
South Ribble Council,http://statistics.data.gov.uk/doc/local-authority/30UN,Area 2 - Waste Transport/Eastern & Central Teams,Materials General,4040,1 set brake pads 1 drag link RV14 DTZ  JFC13218,24/10/2019,0000450069,272.24,Revenue,LANCS DAF,00026424
South Ribble Council,http://statistics.data.gov.uk/doc/local-authority/30UN,Area 2 - Waste Transport/Eastern & Central Teams,Materials General,4040,Brake hoses YA19 NKC JFC 13420,24/10/2019,0000450404,267.33,Revenue,LANCS DAF,00026424
South Ribble Council,http://statistics.data.gov.uk/doc/local-authority/30UN,Area 2 - Waste Transport/Eastern & Central Teams,Materials General,4040,"2x Brake hoses, YA19 NJZ, JFC13428 (NAME REDACTED)",24/10/2019,0000450428,356.44,Revenue,LANCS DAF,00026424
South Ribble Council,http://statistics.data.gov.uk/doc/local-authority/30UN,Regeneration,Capital Expenditure,C234,Retention for withy Grove road,30/10/2019,0000450563,"1,331.44",Revenue,LANDSCAPE ENGINEERING LIMITED,130416
South Ribble Council,http://statistics.data.gov.uk/doc/local-authority/30UN,Regeneration,Capital Expenditure,C234,Retention for st Catherine natural play area,30/10/2019,0000450564,"1,129.66",Revenue,LANDSCAPE ENGINEERING LIMITED,130416
South Ribble Council,http://statistics.data.gov.uk/doc/local-authority/30UN,Property Services,Materials General,4040,Signs for depot yard: Designated Smoking Area No HGV or deliveries HGV Entrance (including 2 posts),24/10/2019,0000450105,495.85,Revenue,LCC SIGN SHOP,00027096
South Ribble Council,http://statistics.data.gov.uk/doc/local-authority/30UN,Housing,Capital Expenditure,C230,"TENDER SPECIFICATION, QS COSTS FOR TENDER SPEC, REVIEW OF DOCUMENTS AND RETURNS, SITE VISITS AND REPORTS FOR CONVERSION OF PEARSON HOUSE ",16/10/2019,0000450334,"3,065.00",Revenue,LEE MCGREGOR LMC ARCHITECTUR,132806
South Ribble Council,http://statistics.data.gov.uk/doc/local-authority/30UN,Area 3 - Parks/Leyland East West,Grounds Maint Cntrctrs Chgs,4657,"Skateboard Repairs: Aluminium Sheets Galvanised Angle Iron Supports welded into Skate Ramp, 1x Mesh Panel for Skate Ramp, Repairs to mesh on Basketball Court",24/10/2019,0000449823,"4,880.00",Revenue,Leyland Lane Wrought Iron Gates & Railings,132012
South Ribble Council,http://statistics.data.gov.uk/doc/local-authority/30UN,Area 3 - Parks/Leyland East West,Grounds Maint Cntrctrs Chgs,4657,Please provide aluminium panels for skate ramps at Withy Grove. 4x Triangular pieces with cut outs (3mm) 4x Square pieces with notches (3mm),11/10/2019,0000450149,"1,920.00",Revenue,Leyland Lane Wrought Iron Gates & Railings,132012
South Ribble Council,http://statistics.data.gov.uk/doc/local-authority/30UN,Property Services,Rep & Maint Premises,2020,Please attend Holland House Pavilion and repair the two doors at the Pavilion as per NAME REDACTED,24/10/2019,0000450439,370.00,Revenue,Leyland Lane Wrought Iron Gates & Railings,132012
South Ribble Council,http://statistics.data.gov.uk/doc/local-authority/30UN,Information Services,Peripherals,4241,"25 x Openscape CP205 handsets @ 86.66 each, as per quote",30/10/2019,0000450525,"2,166.50",Revenue,Lloyds-IP t/a Lloyds Business Communications Ltd,132971
South Ribble Council,http://statistics.data.gov.uk/doc/local-authority/30UN,Regeneration,Other Misc,4851,Contribution to Road Closure for Remembrance Sunday Parade 2019,18/10/2019,0000450379,300.00,Revenue,LOSTOCK HALL ROYAL BRITISH LEG,131308
South Ribble Council,http://statistics.data.gov.uk/doc/local-authority/30UN,Housing,Cap Grant- Improve Grants,C570,DFG WORKS TO RAMP AT ADDRESS REDACTED  AS PER QUOTE SUPPIED FOR SRBC PLANS COST 5907.52,04/10/2019,0000449992,"5,907.52",Revenue,LTL CONSTRUCTION & MAINTENANCE LTD,131406
South Ribble Council,http://statistics.data.gov.uk/doc/local-authority/30UN,Housing,Cap Grant- Improve Grants,C570,DFG WORKS FOR LEVEL ACCESS BATHROOM AT ADDRESS REDACTED New progress property 50% of quote-4789.59 to be paid via the grant is 2394.80 Total 2394.80,02/10/2019,0000449936,"2,394.80",Revenue,MAHONEY CONTRACTORS LTD,131271
South Ribble Council,http://statistics.data.gov.uk/doc/local-authority/30UN,Housing,Cap Grant- Improve Grants,C570,DFG WORKS FOR LEVEL ACCESS BATHROOM AT ADDRESS REDACTED New progress property so 50%  of quote of 3613.72 paid via grant 1806.86 Total Cost 1806.86,04/10/2019,0000449974,"1,806.86",Revenue,MAHONEY CONTRACTORS LTD,131271
South Ribble Council,http://statistics.data.gov.uk/doc/local-authority/30UN,Housing,Cap Grant- Improve Grants,C570,DFG WORKS FOR LEVEL ACCESS BATHROOM AT ADDRESS REDACTED New progress property so 50% of quote-4910.00 paid via the grant is 2455.00 Total 2455.00,16/10/2019,0000449975,"2,455.00",Revenue,MAHONEY CONTRACTORS LTD,131271
South Ribble Council,http://statistics.data.gov.uk/doc/local-authority/30UN,Housing,Cap Grant- Improve Grants,C570,DFG WORKS FOR LEVEL ACCESS BATHROOM AT ADDRESS REDACTED New progress property so 50% of quote-5057.09 paid via the grant 2528.55 Total Cost 2528.55,11/10/2019,0000450092,"2,528.55",Revenue,MAHONEY CONTRACTORS LTD,131271
South Ribble Council,http://statistics.data.gov.uk/doc/local-authority/30UN,Housing,Cap Grant- Improve Grants,C570,DFG WORKS FOR LEVEL ACCESS BATHROOM AT ADDRESS REDACTED New progress property so 50%  of quote-5754.20 paid via the grant 2877.10 Total Cost 2877.10,30/10/2019,0000450604,"2,877.10",Revenue,MAHONEY CONTRACTORS LTD,131271
South Ribble Council,http://statistics.data.gov.uk/doc/local-authority/30UN,Revenues Plus,Capital Expenditure,C234,As per quote 0052638 installation cost 67318 plus 5 years maintenance billed annually cost 9253 x5. Total cost 113583.00,24/10/2019,0000449891,"12,515.48",Revenue,Maintel Europe Ltd,132500
South Ribble Council,http://statistics.data.gov.uk/doc/local-authority/30UN,Regeneration,Other Misc,4851,Photography for Big Do event on 24th September,22/10/2019,0000449991,250.00,Revenue,MARTIN BIRCHALL PHOTOGRAPHY,132599
South Ribble Council,http://statistics.data.gov.uk/doc/local-authority/30UN,Neighbourhood Admin & Support,Grounds Maint Cntrctrs Chgs,4657,REMOVE 2 LOADS OF WASTE FROM WORDEN PARK,18/10/2019,0000450123,420.00,Revenue,NAME REDACTED,132480
South Ribble Council,http://statistics.data.gov.uk/doc/local-authority/30UN,Housing,Cap Grant- Improve Grants,C570,DFG WORKS TO BATHROOM AT ADDRESS REDACTED AS PER THE COST TO COMPLETE THE WORK USING SRBC SPECIFICATION COST 5671.00,30/10/2019,0000450376,"5,671.00",Revenue,NAME REDACTED,132840
South Ribble Council,http://statistics.data.gov.uk/doc/local-authority/30UN,Area 2 - Waste Transport/Eastern & Central Teams,External Contractors Charges,4570,INSTALL ON BOARD CHARGER FOR JUMP BATTERIES & MODIFY JUMP LEAD POINTS YK09ZTR JFC 13370,24/10/2019,0000450189,360.00,Revenue,MJC Auto Electrics,132514
South Ribble Council,http://statistics.data.gov.uk/doc/local-authority/30UN,Legal,Legal,4821,"PROFESSIONAL ADVICE WITH REGARD TO LAND REAR OF OAKDENE, CHAIN HOUSE LANE, WHITESTAKE (PLANNING) SEE ALSO REFERENCE REDACTED",09/10/2019,0000450005,787.50,Revenue,NAME REDACTED,131944
South Ribble Council,http://statistics.data.gov.uk/doc/local-authority/30UN,Legal,Legal,4821,"PROFESSIONAL ADVICE WITH REGARD TO LAND REAR OF OAKDENE, CHAIN HOUSE LANE, WHITESTAKE (PLANNING) SEE ALSO REFERENCE REDACTED",16/10/2019,0000450314,450.00,Revenue,NAME REDACTED,131944
South Ribble Council,http://statistics.data.gov.uk/doc/local-authority/30UN,Housing,Cap Grant- Improve Grants,C570,DFG WORKS TO BATHROOM AT ADDRESS REDACTED AS PER QUOTE SUPPLIED OF 3468.00. CUSTOMER HAS CONTRIBUTION OF 364.75 SO TOTAL GRANT 3103.25,18/10/2019,0000450374,"3,103.25",Revenue,MSG Building and Construction Ltd,132375
South Ribble Council,http://statistics.data.gov.uk/doc/local-authority/30UN,Housing,Cap Grant- Improve Grants,C570,DFG WORKS TO BATHROOM AT ADDRESS REDACTED AS PER QUOTE SUPPLIED OF 4482.00 CUSTOMER HAS A CONTRIBUTION OF 528.93 TOTAL GRANT 3953.07,24/10/2019,0000450441,"3,688.07",Revenue,MSG Building and Construction Ltd,132375
South Ribble Council,http://statistics.data.gov.uk/doc/local-authority/30UN,Area 2 - Waste Transport/Eastern & Central Teams,External Contractors Charges,4570,LOLER TEST X2 JFC 11900 VK09AHJ,09/10/2019,0000450058,120.00,Revenue,MUNICIPAL VEHICLE INSPECTION SE,00096645
South Ribble Council,http://statistics.data.gov.uk/doc/local-authority/30UN,Area 2 - Waste Transport/Eastern & Central Teams,External Contractors Charges,4570,LOLER TEST JFC 11901 PJ62UCM,09/10/2019,0000450058,60.00,Revenue,MUNICIPAL VEHICLE INSPECTION SE,00096645
South Ribble Council,http://statistics.data.gov.uk/doc/local-authority/30UN,Area 2 - Waste Transport/Eastern & Central Teams,External Contractors Charges,4570,LOLER TEST JFC 11902 PO13UUM,09/10/2019,0000450058,60.00,Revenue,MUNICIPAL VEHICLE INSPECTION SE,00096645
South Ribble Council,http://statistics.data.gov.uk/doc/local-authority/30UN,Area 2 - Waste Transport/Eastern & Central Teams,External Contractors Charges,4570,LOLER TEST JFC 13308 PF15HYU,09/10/2019,0000450058,60.00,Revenue,MUNICIPAL VEHICLE INSPECTION SE,00096645
South Ribble Council,http://statistics.data.gov.uk/doc/local-authority/30UN,Area 2 - Waste Transport/Eastern & Central Teams,External Contractors Charges,4570,LOLER TEST JFC 13309 PF18JOV,09/10/2019,0000450058,60.00,Revenue,MUNICIPAL VEHICLE INSPECTION SE,00096645
South Ribble Council,http://statistics.data.gov.uk/doc/local-authority/30UN,HR & Communications,Training Expense-Course Fees,1402,NAME REDACTED TO ATTEND PA2A QUAD BIKE WEED CONTROL APPLICATION COURSE ON 12 SEPTEMBER 2019 AT SRBC DEPOT,16/10/2019,0000450094,250.00,Revenue,MYERSCOUGH COLLEGE,00026453
South Ribble Council,http://statistics.data.gov.uk/doc/local-authority/30UN,HR & Communications,Training Expense-Course Fees,1402,NAME REDACTED TO ATTEND PA2A QUAD BIKE WEED CONTROL APPLICATION COURSE ON 12 SEPTEMBER 2019 AT SRBC DEPOT,16/10/2019,0000450094,220.00,Revenue,MYERSCOUGH COLLEGE,00026453
South Ribble Council,http://statistics.data.gov.uk/doc/local-authority/30UN,Information Services,Peripherals,4241,"40 x Kingston Technology A400 2.5`` 120GB Serial ATA 111 TLC SSD @ 16.80 each, plus delivery 7.50",16/10/2019,0000450310,679.50,Revenue,MYPREMIER LTD,130091
South Ribble Council,http://statistics.data.gov.uk/doc/local-authority/30UN,Area 2 - Waste Transport/Eastern & Central Teams,External Contractors Charges,4570,SERVICE WASH VO65KRD JFC 13345,09/10/2019,0000450023,65.00,Revenue,NAYLORS TRANSPORT (LEYLAND) ltd,00114828
South Ribble Council,http://statistics.data.gov.uk/doc/local-authority/30UN,Area 2 - Waste Transport/Eastern & Central Teams,External Contractors Charges,4570,SERVICE WASH VO65KRE JFC 13346,09/10/2019,0000450023,65.00,Revenue,NAYLORS TRANSPORT (LEYLAND) ltd,00114828
South Ribble Council,http://statistics.data.gov.uk/doc/local-authority/30UN,Area 2 - Waste Transport/Eastern & Central Teams,External Contractors Charges,4570,SERVICE WASH VO65KRF JFC 13347,09/10/2019,0000450023,65.00,Revenue,NAYLORS TRANSPORT (LEYLAND) ltd,00114828
South Ribble Council,http://statistics.data.gov.uk/doc/local-authority/30UN,Area 2 - Waste Transport/Eastern & Central Teams,External Contractors Charges,4570,SERVICE WASH RV14DTZ JFC 13348,09/10/2019,0000450023,65.00,Revenue,NAYLORS TRANSPORT (LEYLAND) ltd,00114828
South Ribble Council,http://statistics.data.gov.uk/doc/local-authority/30UN,Area 2 - Waste Transport/Eastern & Central Teams,External Contractors Charges,4570,SERVICE WASH VK09AHJ JFC 13349,09/10/2019,0000450023,65.00,Revenue,NAYLORS TRANSPORT (LEYLAND) ltd,00114828
South Ribble Council,http://statistics.data.gov.uk/doc/local-authority/30UN,Area 2 - Waste Transport/Eastern & Central Teams,External Contractors Charges,4570,SERVICE WASH PJ62UCL JFC 13350,09/10/2019,0000450023,65.00,Revenue,NAYLORS TRANSPORT (LEYLAND) ltd,00114828
South Ribble Council,http://statistics.data.gov.uk/doc/local-authority/30UN,Area 2 - Waste Transport/Eastern & Central Teams,External Contractors Charges,4570,SERVICE WASH MX04YNL JFC 13351,09/10/2019,0000450023,65.00,Revenue,NAYLORS TRANSPORT (LEYLAND) ltd,00114828
South Ribble Council,http://statistics.data.gov.uk/doc/local-authority/30UN,Area 2 - Waste Transport/Eastern & Central Teams,External Contractors Charges,4570,SERVICE WASH PJ62UCH JFC 13252,09/10/2019,0000450023,65.00,Revenue,NAYLORS TRANSPORT (LEYLAND) ltd,00114828
South Ribble Council,http://statistics.data.gov.uk/doc/local-authority/30UN,Area 2 - Waste Transport/Eastern & Central Teams,External Contractors Charges,4570,SERVICE WASH PJ62UCM JFC 13353,09/10/2019,0000450023,65.00,Revenue,NAYLORS TRANSPORT (LEYLAND) ltd,00114828
South Ribble Council,http://statistics.data.gov.uk/doc/local-authority/30UN,Area 2 - Waste Transport/Eastern & Central Teams,External Contractors Charges,4570,SERVICE WASH PO13UUM JFC 13354,09/10/2019,0000450023,65.00,Revenue,NAYLORS TRANSPORT (LEYLAND) ltd,00114828
South Ribble Council,http://statistics.data.gov.uk/doc/local-authority/30UN,Area 2 - Waste Transport/Eastern & Central Teams,External Contractors Charges,4570,SERVICE WASH YD19AUO JFC 13355,09/10/2019,0000450027,65.00,Revenue,NAYLORS TRANSPORT (LEYLAND) ltd,00114828
South Ribble Council,http://statistics.data.gov.uk/doc/local-authority/30UN,Area 2 - Waste Transport/Eastern & Central Teams,External Contractors Charges,4570,SERVICE WASH YD19AUN JFC 13356,09/10/2019,0000450027,65.00,Revenue,NAYLORS TRANSPORT (LEYLAND) ltd,00114828
South Ribble Council,http://statistics.data.gov.uk/doc/local-authority/30UN,Area 2 - Waste Transport/Eastern & Central Teams,External Contractors Charges,4570,SERVICE WASH YD19AUT JFC 13357,09/10/2019,0000450027,65.00,Revenue,NAYLORS TRANSPORT (LEYLAND) ltd,00114828
South Ribble Council,http://statistics.data.gov.uk/doc/local-authority/30UN,Area 2 - Waste Transport/Eastern & Central Teams,External Contractors Charges,4570,SERVICE WASH YA19NKC JFC 13358,09/10/2019,0000450027,65.00,Revenue,NAYLORS TRANSPORT (LEYLAND) ltd,00114828
South Ribble Council,http://statistics.data.gov.uk/doc/local-authority/30UN,Area 2 - Waste Transport/Eastern & Central Teams,External Contractors Charges,4570,SERVICE WASH YD19AUM JFC 13359,09/10/2019,0000450027,65.00,Revenue,NAYLORS TRANSPORT (LEYLAND) ltd,00114828
South Ribble Council,http://statistics.data.gov.uk/doc/local-authority/30UN,Area 2 - Waste Transport/Eastern & Central Teams,External Contractors Charges,4570,SERVICE WASH YA19NJZ JFC 13360,09/10/2019,0000450027,65.00,Revenue,NAYLORS TRANSPORT (LEYLAND) ltd,00114828
South Ribble Council,http://statistics.data.gov.uk/doc/local-authority/30UN,Area 2 - Waste Transport/Eastern & Central Teams,External Contractors Charges,4570,SERVICE WASH YA19NKD JFC 13361,09/10/2019,0000450027,65.00,Revenue,NAYLORS TRANSPORT (LEYLAND) ltd,00114828
South Ribble Council,http://statistics.data.gov.uk/doc/local-authority/30UN,Regeneration,Other Misc,4861,REFERENCE REDACTED,18/10/2019,0000449919,"1,500.00",Revenue,Nigel Stewart,131699
South Ribble Council,http://statistics.data.gov.uk/doc/local-authority/30UN,Neighbourhood Admin & Support,Materials General,4040,700/1000mm ORA 2.8mm Poly & 3.3mm  Wire 5 Row Channel Brush 78399/2,16/10/2019,0000450103,537.60,Revenue,NORTHERN MUNICIPAL SPARES LTD,00117061
South Ribble Council,http://statistics.data.gov.uk/doc/local-authority/30UN,Neighbourhood Admin & Support,Materials General,4040,700/1000mm 3.3mm Wire 4 row - 19kg Wire Channel Brush 78399/3,16/10/2019,0000450240,616.80,Revenue,NORTHERN MUNICIPAL SPARES LTD,00117061
South Ribble Council,http://statistics.data.gov.uk/doc/local-authority/30UN,Area 1 - Penwortham Western Parishes,Professional Fees,4514,DEPLOYMENT OF OFFICERS SEPTEMBER 2019,09/10/2019,0000450007,"1,130.60",Revenue,NSL LTD,00116868
South Ribble Council,http://statistics.data.gov.uk/doc/local-authority/30UN,Area 1 - Penwortham Western Parishes,Other Misc,4855,CASH COLLECTIONS AND RINGO TRANSACTIONS SEPTEMBER 2019,09/10/2019,0000450007,442.73,Revenue,NSL LTD,00116868
South Ribble Council,http://statistics.data.gov.uk/doc/local-authority/30UN,Area 1 - Penwortham Western Parishes,Other Misc,4855,RINGO CONVENIENCE CHARGE SEPTEMBER 2019,09/10/2019,0000450007,234.90,Revenue,NSL LTD,00116868
South Ribble Council,http://statistics.data.gov.uk/doc/local-authority/30UN,Area 1 - Penwortham Western Parishes,Professional Fees,4526,PRICE PER CONTRACTED ITEMISED COLLECTION - OTHER,09/10/2019,0000450007,39.66,Revenue,NSL LTD,00116868
South Ribble Council,http://statistics.data.gov.uk/doc/local-authority/30UN,Area 1 - Penwortham Western Parishes,Operational Furniture & Equip,4013,Call out to repair P&D Machine No 5 at Churchill Way Leyland (Escrow failure replaced and tested working OK),24/10/2019,0000450447,356.00,Revenue,PARKEON LTD,00082918
South Ribble Council,http://statistics.data.gov.uk/doc/local-authority/30UN,Area 1 - Penwortham Western Parishes,Materials General,4040,SERVICING OF 9 PAY AND DISPLAY MACHINES,30/10/2019,0000450569,398.00,Revenue,PARKEON LTD,00082918
South Ribble Council,http://statistics.data.gov.uk/doc/local-authority/30UN,Healthy Communities,Cleaning and Domestic Supplies,2711,Cleaning stock sept 19,02/10/2019,0000449594,600.27,Revenue,Pattersons (Bristol) Ltd,132621
South Ribble Council,http://statistics.data.gov.uk/doc/local-authority/30UN,Regeneration,Other Expenses,4630,"Use of St Andrew`s Church Hall for Longton Village Market for May, June, July, August and September 2019",04/10/2019,0000449920,300.00,Revenue,PCC  ST ANDREWS OF LONGTON,00051541
South Ribble Council,http://statistics.data.gov.uk/doc/local-authority/30UN,HR & Communications,Professional Fees,4520,2019 Staff Survey Initial 50% Fee,22/10/2019,0000450411,"1,100.00",Revenue,Pearson Insight Ltd,132967
South Ribble Council,http://statistics.data.gov.uk/doc/local-authority/30UN,Property Services,Rep & Maint Premises,2020,"Please attend South Ribble and replace the extinguishers 9 x 2 kg CO2, at Various offices specified",04/10/2019,0000449758,353.70,Revenue,PENNINE FIRE & SAFETY LIMITED,00117281
South Ribble Council,http://statistics.data.gov.uk/doc/local-authority/30UN,Property Services,Rep & Maint Fixed Plant,2037,Annual Contract  2019/2020 for the inspection of Portable Fire Extinguishers and Fire Blankets at various sites Brickcroft Visitor`s centre,18/10/2019,0000450324,5.94,Revenue,PENNINE FIRE & SAFETY LIMITED,00117281
South Ribble Council,http://statistics.data.gov.uk/doc/local-authority/30UN,Property Services,Rep & Maint Fixed Plant,2037,Annual Contract for 2019/2020 for the inspection of the Portable Fire Extinguishers and Fire Blankets at various sites Civic Centre,18/10/2019,0000450324,155.14,Revenue,PENNINE FIRE & SAFETY LIMITED,00117281
South Ribble Council,http://statistics.data.gov.uk/doc/local-authority/30UN,Property Services,Rep & Maint Fixed Plant,2037,Annual Contract for 2019/2020 for the inspection of the Portable Fire Extinguishers and Fire Blankets at various sites Higher Walton Community Centre,18/10/2019,0000450324,6.64,Revenue,PENNINE FIRE & SAFETY LIMITED,00117281
South Ribble Council,http://statistics.data.gov.uk/doc/local-authority/30UN,Property Services,Rep & Maint Fixed Plant,2037,Annual Contract for 2019/2020 for the inspection of the Portable Fire Extinguishers and Fire Blankets at various sites Holland House Farm Pavillion,18/10/2019,0000450324,2.97,Revenue,PENNINE FIRE & SAFETY LIMITED,00117281
South Ribble Council,http://statistics.data.gov.uk/doc/local-authority/30UN,Property Services,Rep & Maint Fixed Plant,2037,Annual Contract for 2019/2020 for the inspection of the Portable Fire Extinguishers and Fire Blankets at various sites Hurst Grange Park,18/10/2019,0000450324,29.38,Revenue,PENNINE FIRE & SAFETY LIMITED,00117281
South Ribble Council,http://statistics.data.gov.uk/doc/local-authority/30UN,Property Services,Rep & Maint Fixed Plant,2037,Annual Contract for 2019/2020 for the inspection of the Portable Fire Extinguishers and Fire Blankets at various sites Leyland Indoor Market,18/10/2019,0000450324,39.31,Revenue,PENNINE FIRE & SAFETY LIMITED,00117281
South Ribble Council,http://statistics.data.gov.uk/doc/local-authority/30UN,Property Services,Rep & Maint Fixed Plant,2037,Annual Contract for 2019/2020 for the inspection of the Portable Fire Extinguishers and Fire Blankets at various sites Middleforth Garage Toilet Block,18/10/2019,0000450324,2.97,Revenue,PENNINE FIRE & SAFETY LIMITED,00117281
South Ribble Council,http://statistics.data.gov.uk/doc/local-authority/30UN,Property Services,Rep & Maint Fixed Plant,2037,Annual Contract for 2019/2020 for the inspection of the Portable Fire Extinguishers and Fire Blankets at various sites Moss Side Community Centre,18/10/2019,0000450324,12.58,Revenue,PENNINE FIRE & SAFETY LIMITED,00117281
South Ribble Council,http://statistics.data.gov.uk/doc/local-authority/30UN,Property Services,Rep & Maint Fixed Plant,2037,Annual Contract for 2019/2020 for the inspection of the Portable Fire Extinguishers and Fire Blankets at various sites Moss Side Depot,18/10/2019,0000450324,104.65,Revenue,PENNINE FIRE & SAFETY LIMITED,00117281
South Ribble Council,http://statistics.data.gov.uk/doc/local-authority/30UN,Property Services,Rep & Maint Fixed Plant,2037,Annual Contract for 2019/2020  for the inspection of the Portable Fire Extinguishers and Fire Blankets at various sites Ranger`s Office,18/10/2019,0000450324,2.97,Revenue,PENNINE FIRE & SAFETY LIMITED,00117281
South Ribble Council,http://statistics.data.gov.uk/doc/local-authority/30UN,Property Services,Rep & Maint Fixed Plant,2037,Annual Contract for 2019/2020 for the inspection of the Portable Fire Extinguishers and Fire Blankets at various sites Welcome Hall Community Centre,18/10/2019,0000450324,9.61,Revenue,PENNINE FIRE & SAFETY LIMITED,00117281
South Ribble Council,http://statistics.data.gov.uk/doc/local-authority/30UN,Property Services,Rep & Maint Fixed Plant,2037,Annual Contract for 2019/2020 for the inspection of the Portable Fire Extinguishers and Fire Blankets at various sites Worden Arts and Craft Centre,18/10/2019,0000450324,71.28,Revenue,PENNINE FIRE & SAFETY LIMITED,00117281
South Ribble Council,http://statistics.data.gov.uk/doc/local-authority/30UN,Property Services,Rep & Maint Fixed Plant,2037,2019/20 annual inspection of fire extinguishers & blankets at Leyland Museum,18/10/2019,0000450324,14.85,Revenue,PENNINE FIRE & SAFETY LIMITED,00117281
South Ribble Council,http://statistics.data.gov.uk/doc/local-authority/30UN,Healthy Communities,Grants to Vol Bodies,4711,grant claim,16/10/2019,0000450117,250.00,Revenue,Penwortham Town FC,132501
South Ribble Council,http://statistics.data.gov.uk/doc/local-authority/30UN,Healthy Communities,Grants to Vol Bodies,4711,LFA level 1,18/10/2019,0000450147,250.00,Revenue,Penwortham Town FC,132501
South Ribble Council,http://statistics.data.gov.uk/doc/local-authority/30UN,HR & Communications,Training Expense-Course Fees,1408,1 x Management Referral - NAME REDACTED - 07.10.2019,24/10/2019,0000450395,87.00,Revenue,People Asset Management,132492
South Ribble Council,http://statistics.data.gov.uk/doc/local-authority/30UN,HR & Communications,Training Expense-Course Fees,1408,1 x Master App Full Day 08.10.2019,24/10/2019,0000450395,322.00,Revenue,People Asset Management,132492
South Ribble Council,http://statistics.data.gov.uk/doc/local-authority/30UN,Information Services,Peripherals,4247,VMware annual maintenance renewal for period 09/11/19 - 08/11/20 as per quote ref. 01142541,18/10/2019,0000450356,"7,253.47",Revenue,PHOENIX SOFTWARE LTD,00064279
South Ribble Council,http://statistics.data.gov.uk/doc/local-authority/30UN,Information Services,Peripherals,4247,"Sophos UTM annual licence renewal for period 01/11/19 - 31/10/20, as per quote ref. 01147027",22/10/2019,0000450414,"3,445.76",Revenue,PHOENIX SOFTWARE LTD,00064279
South Ribble Council,http://statistics.data.gov.uk/doc/local-authority/30UN,Property Services,Operational Furniture & Equip,4012,2019 / 2020 contract for the provision of sanitary services at the Civic Centre,04/10/2019,0000449957,982.31,Revenue,PHS GROUP PLC,00031309
South Ribble Council,http://statistics.data.gov.uk/doc/local-authority/30UN,Property Services,Operational Furniture & Equip,4012,"2019 / 2020 contract for the provision of sanitary services at Moss Side Depot, Bison Place, Leyland",04/10/2019,0000449958,408.27,Revenue,PHS GROUP PLC,00031309
South Ribble Council,http://statistics.data.gov.uk/doc/local-authority/30UN,Area 2 - Waste Transport/Eastern & Central Teams,Materials General,4040,1 X 205LT RED ANTIFREEZE @ 1.45 PPL,02/10/2019,0000449877,297.25,Revenue,PILKINGTON OILS,00113531
South Ribble Council,http://statistics.data.gov.uk/doc/local-authority/30UN,Area 2 - Waste Transport/Eastern & Central Teams,Materials General,4040,1200LT X HYDRAULIC OIL TYPE 32 @ 0.77 PPL,24/10/2019,0000450470,934.01,Revenue,PILKINGTON OILS,00113531
South Ribble Council,http://statistics.data.gov.uk/doc/local-authority/30UN,Planning,Other Misc,485R,refund,11/10/2019,0000450113,"1,386.00",Revenue,Planning Portal,132936
South Ribble Council,http://statistics.data.gov.uk/doc/local-authority/30UN,Housing,Cap Grant- Improve Grants,C570,DFG WORKS TO BATHROOM AT ADDRESS REDACTED AS PER QUOTE OF 2965.00 SUPPLIED FOR SRBC PLANS- 50% TO BE PAID BY ACCENT HOUSING COST 1482.50,09/10/2019,0000450054,"1,320.00",Revenue,Positive Plumbing Solutions Ltd,131562
South Ribble Council,http://statistics.data.gov.uk/doc/local-authority/30UN,Development Enterprise & Comm Mgnt,Other Misc,4851,Design flyer for Taste Leyland 2019 4 weeks Social Media promotion via Facebook & Twitter: Taste Leyland 2019  @ 500,02/10/2019,0000449636,500.00,Revenue,Potential Unlocked Consulting Ltd,132896
South Ribble Council,http://statistics.data.gov.uk/doc/local-authority/30UN,Property Services,Licence Fees,4883,music licence for the civic,09/10/2019,0000450034,376.52,Revenue,PPL PRS,132554
South Ribble Council,http://statistics.data.gov.uk/doc/local-authority/30UN,Property Services,Licence Fees,4883,music licence fee leyland,09/10/2019,0000450034,680.50,Revenue,PPL PRS,132554
South Ribble Council,http://statistics.data.gov.uk/doc/local-authority/30UN,Information Services,Fixtures and Fittings,2611,5103SSMFEH   Ergonomic Chair 3L Lumbar Pump Seat Slide Mem Foam High Gas lift in Havana,22/10/2019,0000450416,636.00,Revenue,PREMIER OFFICE SUPPLES (UK) LTD,00090159
South Ribble Council,http://statistics.data.gov.uk/doc/local-authority/30UN,Information Services,Stationery,4133,"50,000 sheets  Evolution Everyday  A4 80gm 5000  sheets    Evolution Everyday A3 80gm 2500 sheets     Papago   Green A4 80gm",16/10/2019,0000450191,305.25,Revenue,PREMIER PAPER GROUP LTD,00022606
South Ribble Council,http://statistics.data.gov.uk/doc/local-authority/30UN,Information Services,Stationery,4133,"50,000 sheets Evolution Everyday A4 80gm 15000 sheets Evolution Business A4 90gm",30/10/2019,0000450566,393.50,Revenue,PREMIER PAPER GROUP LTD,00022606
South Ribble Council,http://statistics.data.gov.uk/doc/local-authority/30UN,Democratic Services,Other Misc,4423,POSTAGE FOR POLL CARDS FOR CGGL - BY-ELECTION,16/10/2019,0000449757,"1,318.26",Revenue,PRINT IMAGE FACILITIES LLP,130734
South Ribble Council,http://statistics.data.gov.uk/doc/local-authority/30UN,Democratic Services,Printing,4127,"REMINDER MAILING - 24,975",02/10/2019,0000449869,"2,853.60",Revenue,PRINT IMAGE NETWORK LTD,00089199
South Ribble Council,http://statistics.data.gov.uk/doc/local-authority/30UN,Democratic Services,Printing,4127,"FINAL REMINDER MAILING - 12,488",18/10/2019,0000450386,"1,943.75",Revenue,PRINT IMAGE NETWORK LTD,00089199
South Ribble Council,http://statistics.data.gov.uk/doc/local-authority/30UN,Democratic Services,Other Misc,4423,CGGL BY-ELECTION POLL CARDS (2 SORTS - 3460 IN TOTAL) - JOB REF:  6110,30/10/2019,0000450572,"1,285.00",Revenue,PRINT IMAGE NETWORK LTD,00089199
South Ribble Council,http://statistics.data.gov.uk/doc/local-authority/30UN,Homelessness,Professional Fees,4520,Progress Management of TA 9551.12 + VAT,02/10/2019,0000449634,"9,551.12",Revenue,PROGRESS HOUSING GRP ,00030135
South Ribble Council,http://statistics.data.gov.uk/doc/local-authority/30UN,Development Enterprise & Comm Mgnt,Other Misc,485K,Sitefinity Licence renewal for one year from 1st October 2019 at $899 On-going support and training for new staff  10 hours at 30 per hour = 300.00,16/10/2019,0000450241,"1,053.70",Revenue,PROTEAN SYSTEMS LIMITED,130003
South Ribble Council,http://statistics.data.gov.uk/doc/local-authority/30UN,Property Services,Rep & Maint Premises,2020,"Please undertake works to Withy Grove toilets, Bamber Bridge as per quotation Q2442. Also install a crown of thorns to part of the roof near the wall to prevent people climbing onto it.",16/10/2019,0000450235,230.00,Revenue,PSR & Sons Joiners & Building Contractors,132887
South Ribble Council,http://statistics.data.gov.uk/doc/local-authority/30UN,Property Services,Rep & Maint Premises,2020,materials,16/10/2019,0000450235,900.00,Revenue,PSR & Sons Joiners & Building Contractors,132887
South Ribble Council,http://statistics.data.gov.uk/doc/local-authority/30UN,Property Services,Rep & Maint Premises,2020,Please attend Bamber Bridge Leisure centre to repair the roof leak over the dance studio,16/10/2019,0000450237,385.00,Revenue,PSR & Sons Joiners & Building Contractors,132887
South Ribble Council,http://statistics.data.gov.uk/doc/local-authority/30UN,Property Services,Rep & Maint Premises,2020,materials,16/10/2019,0000450237,70.00,Revenue,PSR & Sons Joiners & Building Contractors,132887
South Ribble Council,http://statistics.data.gov.uk/doc/local-authority/30UN,Property Services,Rep & Maint Premises,2020,Please attend Civic Centre  - and fit smoke seals as per Quotation Q 2284,16/10/2019,0000450248,220.00,Revenue,PSR & Sons Joiners & Building Contractors,132887
South Ribble Council,http://statistics.data.gov.uk/doc/local-authority/30UN,Property Services,Rep & Maint Premises,2020,materials,16/10/2019,0000450248,500.00,Revenue,PSR & Sons Joiners & Building Contractors,132887
South Ribble Council,http://statistics.data.gov.uk/doc/local-authority/30UN,Property Services,Rep & Maint Premises,2020,"Please undertake works to the gutters, roof and fascia boards at Longton Brickcroft as per quotation Q2444 Also to replace roof tiles - estimate additional 100",16/10/2019,0000450269,180.00,Revenue,PSR & Sons Joiners & Building Contractors,132887
South Ribble Council,http://statistics.data.gov.uk/doc/local-authority/30UN,Property Services,Rep & Maint Premises,2020,materials,16/10/2019,0000450269,760.00,Revenue,PSR & Sons Joiners & Building Contractors,132887
South Ribble Council,http://statistics.data.gov.uk/doc/local-authority/30UN,Property Services,Rep & Maint Premises,2020,Please attend Carr Street Community Centre and carry out works as per your quotation LRS Q 2303 dated 17th September as per NAME REDACTED,16/10/2019,0000450273,150.00,Revenue,PSR & Sons Joiners & Building Contractors,132887
South Ribble Council,http://statistics.data.gov.uk/doc/local-authority/30UN,Property Services,Rep & Maint Premises,2020,materials,16/10/2019,0000450273,615.00,Revenue,PSR & Sons Joiners & Building Contractors,132887
South Ribble Council,http://statistics.data.gov.uk/doc/local-authority/30UN,Property Services,Rep & Maint Premises,2020,"To undertake the works to the gutters and painting at Tardy Gate toilets, Lostock Hall as per quotation Q2441",16/10/2019,0000450274,160.00,Revenue,PSR & Sons Joiners & Building Contractors,132887
South Ribble Council,http://statistics.data.gov.uk/doc/local-authority/30UN,Property Services,Rep & Maint Premises,2020,materials,16/10/2019,0000450274,500.00,Revenue,PSR & Sons Joiners & Building Contractors,132887
South Ribble Council,http://statistics.data.gov.uk/doc/local-authority/30UN,Property Services,Rep & Maint Premises,2020,"Carr Street Community Centre, carry out works to the Quote submitted Q 2304  ITEM 2  - NEW FENCING and ITEM 3  - BENCH STANDS only as per NAME REDACTED",16/10/2019,0000450275,400.00,Revenue,PSR & Sons Joiners & Building Contractors,132887
South Ribble Council,http://statistics.data.gov.uk/doc/local-authority/30UN,Property Services,Rep & Maint Premises,2020,materials,16/10/2019,0000450275,"3,205.00",Revenue,PSR & Sons Joiners & Building Contractors,132887
South Ribble Council,http://statistics.data.gov.uk/doc/local-authority/30UN,Property Services,Rep & Maint Premises,2020,labour Please replace the gutters to the front of ADDRESS REDACTED,30/10/2019,0000450549,300.00,Revenue,PSR & Sons Joiners & Building Contractors,132887
South Ribble Council,http://statistics.data.gov.uk/doc/local-authority/30UN,Property Services,Rep & Maint Premises,2020,materials,30/10/2019,0000450549,120.00,Revenue,PSR & Sons Joiners & Building Contractors,132887
South Ribble Council,http://statistics.data.gov.uk/doc/local-authority/30UN,Property Services,Rep & Maint Premises,2020,labour Please attend Leyland Leisure Centre to replace the cladding as per quotation Q2539,30/10/2019,0000450550,90.00,Revenue,PSR & Sons Joiners & Building Contractors,132887
South Ribble Council,http://statistics.data.gov.uk/doc/local-authority/30UN,Property Services,Rep & Maint Premises,2020,materials,30/10/2019,0000450550,300.00,Revenue,PSR & Sons Joiners & Building Contractors,132887
South Ribble Council,http://statistics.data.gov.uk/doc/local-authority/30UN,Property Services,Rep & Maint Premises,2020,labour Please attend Penwortham leisure centre to repair the cladding over the fire wall as agreed with the facilities officer.,30/10/2019,0000450551,270.00,Revenue,PSR & Sons Joiners & Building Contractors,132887
South Ribble Council,http://statistics.data.gov.uk/doc/local-authority/30UN,Property Services,Rep & Maint Premises,2020,materials,30/10/2019,0000450551,115.00,Revenue,PSR & Sons Joiners & Building Contractors,132887
South Ribble Council,http://statistics.data.gov.uk/doc/local-authority/30UN,Information Services,Postage,4292,Franking Funds + mail underpayment  charge 16/9 to 21/10/19,30/10/2019,0000450602,"9,094.45",Revenue,Purchase Power,00093923
South Ribble Council,http://statistics.data.gov.uk/doc/local-authority/30UN,Area 3 - Parks/Leyland East West,Contract Hire & Lease Costs,3212,8 TONNE EXCAVATOR HIRE FOR 1 WEEK MINIMUM @ 325.00,30/10/2019,0000450251,665.00,Revenue,Readyplant Limited,131535
South Ribble Council,http://statistics.data.gov.uk/doc/local-authority/30UN,Property Services,Rep & Maint Premises,2020,Please attend Moss Side depot to replace the drainage channels,11/10/2019,0000450096,360.00,Revenue,RED ROSE BUILDING MAINTENANCE,00085410
South Ribble Council,http://statistics.data.gov.uk/doc/local-authority/30UN,Property Services,Rep & Maint Premises,2020,materials,11/10/2019,0000450096,900.00,Revenue,RED ROSE BUILDING MAINTENANCE,00085410
South Ribble Council,http://statistics.data.gov.uk/doc/local-authority/30UN,Property Services,Rep & Maint Premises,2020,Please attend Moss Side depot to replace the drainage channels,22/10/2019,0000450344,360.00,Revenue,RED ROSE BUILDING MAINTENANCE,00085410
South Ribble Council,http://statistics.data.gov.uk/doc/local-authority/30UN,Property Services,Rep & Maint Premises,2020,materials,22/10/2019,0000450344,900.00,Revenue,RED ROSE BUILDING MAINTENANCE,00085410
South Ribble Council,http://statistics.data.gov.uk/doc/local-authority/30UN,Property Services,Rep & Maint Premises,2020,Please attend Civic Centre and repair/replace flag at rear of Civic Centre as per NAMES REDACTED,24/10/2019,0000450479,240.00,Revenue,RED ROSE BUILDING MAINTENANCE,00085410
South Ribble Council,http://statistics.data.gov.uk/doc/local-authority/30UN,Property Services,Rep & Maint Premises,2020,Please repair/replace flags at Leyland Market as per NAMES REDACTED,24/10/2019,0000450479,90.00,Revenue,RED ROSE BUILDING MAINTENANCE,00085410
South Ribble Council,http://statistics.data.gov.uk/doc/local-authority/30UN,Property Services,Rep & Maint Premises,2020,materials for line 1,24/10/2019,0000450479,90.00,Revenue,RED ROSE BUILDING MAINTENANCE,00085410
South Ribble Council,http://statistics.data.gov.uk/doc/local-authority/30UN,Property Services,Rep & Maint Premises,2020,materials for line 2,24/10/2019,0000450479,20.00,Revenue,RED ROSE BUILDING MAINTENANCE,00085410
South Ribble Council,http://statistics.data.gov.uk/doc/local-authority/30UN,Shared Financial Services,Expenditure not in NCOS,4996,Share of 400k advance funding required to support the Greater Lancashire Plan as agreed by the BR Pilot Governing Body on 26th September 2019,11/10/2019,0000450164,"36,012.00",Revenue,Ribble Valley Borough Council,131651
South Ribble Council,http://statistics.data.gov.uk/doc/local-authority/30UN,Area 2 - Waste Transport/Eastern & Central Teams,Materials General,4040,2 X BATTERY PJ62UCH JFC 13289,02/10/2019,0000449867,270.00,Revenue,RIBBLESDALE AUTO ELECTRICS 1992 ,00033129
South Ribble Council,http://statistics.data.gov.uk/doc/local-authority/30UN,Information Services,Stationery,413A,,18/10/2019,0000450355,94.64,Revenue,RICOH (UK) LTD,00082976
South Ribble Council,http://statistics.data.gov.uk/doc/local-authority/30UN,Information Services,Lease Rental Charges,4036,,18/10/2019,0000450355,333.20,Revenue,RICOH (UK) LTD,00082976
South Ribble Council,http://statistics.data.gov.uk/doc/local-authority/30UN,Neighbourhood Admin & Support,Materials General,4040,TRUSTEE AMENITY 22149 - 5LT,16/10/2019,0000449505,334.75,Revenue,RIGBY TAYLOR LTD,00033145
South Ribble Council,http://statistics.data.gov.uk/doc/local-authority/30UN,Neighbourhood Admin & Support,Materials General,4040,TRUSTEE AMENITY 22149 - 5LT,16/10/2019,0000449924,334.75,Revenue,RIGBY TAYLOR LTD,00033145
South Ribble Council,http://statistics.data.gov.uk/doc/local-authority/30UN,Area 2 - Waste Transport/Eastern & Central Teams,Contract Hire & Lease Costs,3212,Continued hire of Refuse Collection Vehicle GN19 HKU 1.9.19 - 6.9.19 (895.00 per week) 75.00 collection,16/10/2019,0000450025,"3,759.00",Revenue,RIVERSIDE TRUCK RENTAL LTD,132867
South Ribble Council,http://statistics.data.gov.uk/doc/local-authority/30UN,Area 2 - Waste Transport/Eastern & Central Teams,Contract Hire & Lease Costs,3212,Continued hire of Refuse Collection Vehicle GN19 HKU 1.10.19 - 18.10.19 HIRE COMPLETE,30/10/2019,0000450535,"2,506.00",Revenue,RIVERSIDE TRUCK RENTAL LTD,132867
South Ribble Council,http://statistics.data.gov.uk/doc/local-authority/30UN,Area 2 - Waste Transport/Eastern & Central Teams,Contract Hire & Lease Costs,3212,Collection of vehicle,30/10/2019,0000450535,75.00,Revenue,RIVERSIDE TRUCK RENTAL LTD,132867
South Ribble Council,http://statistics.data.gov.uk/doc/local-authority/30UN,Neighbourhood Admin & Support,Operational Furniture & Equip,4010,BAG LOOP - BOX OF 10,24/10/2019,0000450415,270.00,Revenue,ROBERT ACTON PRODUCTS DEVELO,00014452
South Ribble Council,http://statistics.data.gov.uk/doc/local-authority/30UN,Information Services,Postage,4295,,02/10/2019,0000449656,358.67,Revenue,ROYAL MAIL GROUP PLC,00033543
South Ribble Council,http://statistics.data.gov.uk/doc/local-authority/30UN,Information Services,Postage,4295,standard mail services,24/10/2019,0000450419,469.99,Revenue,ROYAL MAIL GROUP PLC,00033543
South Ribble Council,http://statistics.data.gov.uk/doc/local-authority/30UN,Area 2 - Waste Transport/Eastern & Central Teams,External Contractors Charges,4570,SPEC REPAIR MX04YNL JFC 13080,02/10/2019,0000449322,"2,906.20",Revenue,RTS Muni,132454
South Ribble Council,http://statistics.data.gov.uk/doc/local-authority/30UN,Area 2 - Waste Transport/Eastern & Central Teams,External Contractors Charges,4570,SPEC REPAIR & LOLER VU11HSZ JFC 13098,09/10/2019,0000449944,301.50,Revenue,RTS Muni,132454
South Ribble Council,http://statistics.data.gov.uk/doc/local-authority/30UN,Area 3 - Parks/Leyland East West,Capital Expenditure,C230,Lombardy Poplars x3 - medium/large - fell and remove - grind out stumps Bent Lane - Leyland,04/10/2019,0000449839,"2,780.00",Revenue,RUSS ASPINALL T/A BEARDWOOD TREE SERVICE,00120443
South Ribble Council,http://statistics.data.gov.uk/doc/local-authority/30UN,Area 3 - Parks/Leyland East West,External Contractors Charges,4570,Tree Work at Longton Library,30/10/2019,0000450443,"1,680.00",Revenue,RUSS ASPINALL T/A BEARDWOOD TREE SERVICE,00120443
South Ribble Council,http://statistics.data.gov.uk/doc/local-authority/30UN,Area 2 - Waste Transport/Eastern & Central Teams,External Contractors Charges,4570,SERVICE INSPECTION OF WORKSHOP EQUIPMENT,30/10/2019,0000450558,712.75,Revenue,S & R GARAGE EQUIPMENT,130892
South Ribble Council,http://statistics.data.gov.uk/doc/local-authority/30UN,Area 3 - Parks/Leyland East West,Materials General,4040,Pre-est Coir Roll - Std mix with Glyceria 3m x 0.3m (LM) 2733 - SM1,04/10/2019,0000449748,828.00,Revenue,SALIX RIVER & WETLAND SERVICES LTD,00113285
South Ribble Council,http://statistics.data.gov.uk/doc/local-authority/30UN,Area 3 - Parks/Leyland East West,Materials General,4040,Twine (3mm) 100m reel - 1007,04/10/2019,0000449748,15.00,Revenue,SALIX RIVER & WETLAND SERVICES LTD,00113285
South Ribble Council,http://statistics.data.gov.uk/doc/local-authority/30UN,Area 3 - Parks/Leyland East West,Materials General,4040,Carriage  - PLEASE ADVISE OF DELIVERY 24HRS IN ADVANCE TELEPHONE REDACTED,04/10/2019,0000449748,148.00,Revenue,SALIX RIVER & WETLAND SERVICES LTD,00113285
South Ribble Council,http://statistics.data.gov.uk/doc/local-authority/30UN,Property Services,Professional Fees,4510,"Provision of services to South Ribble Borough Council for the management of the asset management portfolio, McKenzie arms business case and review of asset portfolio.",18/10/2019,0000450213,"1,409.60",Revenue,Sanderson Weatherall LLP,132534
South Ribble Council,http://statistics.data.gov.uk/doc/local-authority/30UN,Property Services,Professional Fees,4510,land reg fee,18/10/2019,0000450213,9.00,Revenue,Sanderson Weatherall LLP,132534
South Ribble Council,http://statistics.data.gov.uk/doc/local-authority/30UN,Area 3 - Parks/Leyland East West,External Contractors Charges,4570,"DRAINAGE RECYCLER UNIT FOR 1 DAY, HURST GRANGE PARK, HILL ROAD, PENWORTHAM",11/10/2019,0000450033,850.00,Revenue,Sapphire Utility Solutions Limited,132824
South Ribble Council,http://statistics.data.gov.uk/doc/local-authority/30UN,Property Services,Energy Costs,2303,11/7/19 to 9/9/19,04/10/2019,0000449723,"5,590.89",Revenue,SCOTTISH HYDRO ELECTRIC,130051
South Ribble Council,http://statistics.data.gov.uk/doc/local-authority/30UN,Property Services,Energy Costs,2307,CCL,04/10/2019,0000449723,275.00,Revenue,SCOTTISH HYDRO ELECTRIC,130051
South Ribble Council,http://statistics.data.gov.uk/doc/local-authority/30UN,Property Services,Energy Costs,2303,20/2/19 to 14/5/19,04/10/2019,0000449849,"3,045.50",Revenue,SCOTTISH HYDRO ELECTRIC,130051
South Ribble Council,http://statistics.data.gov.uk/doc/local-authority/30UN,Property Services,Energy Costs,2307,CCL,04/10/2019,0000449849,161.20,Revenue,SCOTTISH HYDRO ELECTRIC,130051
South Ribble Council,http://statistics.data.gov.uk/doc/local-authority/30UN,Property Services,Energy Costs,2303,6/8/18 to 8/11/19,04/10/2019,0000449850,"3,441.62",Revenue,SCOTTISH HYDRO ELECTRIC,130051
South Ribble Council,http://statistics.data.gov.uk/doc/local-authority/30UN,Property Services,Energy Costs,2307,CCL,04/10/2019,0000449850,155.20,Revenue,SCOTTISH HYDRO ELECTRIC,130051
South Ribble Council,http://statistics.data.gov.uk/doc/local-authority/30UN,Property Services,Energy Costs,2304,3/8/19 to 3/9/19,04/10/2019,0000449895,405.94,Revenue,SCOTTISH HYDRO ELECTRIC,130051
South Ribble Council,http://statistics.data.gov.uk/doc/local-authority/30UN,Property Services,Energy Costs,2304,23/5/19 to 29/8/19,04/10/2019,0000449896,649.10,Revenue,SCOTTISH HYDRO ELECTRIC,130051
South Ribble Council,http://statistics.data.gov.uk/doc/local-authority/30UN,Property Services,Energy Costs,2307,CCL,04/10/2019,0000449896,66.15,Revenue,SCOTTISH HYDRO ELECTRIC,130051
South Ribble Council,http://statistics.data.gov.uk/doc/local-authority/30UN,Property Services,Energy Costs,2303,11/7/19 to 9/9/19,11/10/2019,0000450012,351.36,Revenue,SCOTTISH HYDRO ELECTRIC,130051
South Ribble Council,http://statistics.data.gov.uk/doc/local-authority/30UN,Property Services,Energy Costs,2304,4/9/19 to 1/10/19,24/10/2019,0000450448,615.23,Revenue,SCOTTISH HYDRO ELECTRIC,130051
South Ribble Council,http://statistics.data.gov.uk/doc/local-authority/30UN,Property Services,Energy Costs,2307,CCL,24/10/2019,0000450448,58.71,Revenue,SCOTTISH HYDRO ELECTRIC,130051
South Ribble Council,http://statistics.data.gov.uk/doc/local-authority/30UN,Property Services,Energy Costs,2303,1/9/19 to 30/9/19,24/10/2019,0000450450,"2,897.94",Revenue,SCOTTISH HYDRO ELECTRIC,130051
South Ribble Council,http://statistics.data.gov.uk/doc/local-authority/30UN,Property Services,Energy Costs,2307,CCL,24/10/2019,0000450450,223.15,Revenue,SCOTTISH HYDRO ELECTRIC,130051
South Ribble Council,http://statistics.data.gov.uk/doc/local-authority/30UN,Property Services,Energy Costs,2303,1/9/19 to 30/9/19,24/10/2019,0000450451,835.05,Revenue,SCOTTISH HYDRO ELECTRIC,130051
South Ribble Council,http://statistics.data.gov.uk/doc/local-authority/30UN,Property Services,Energy Costs,2307,CCL,24/10/2019,0000450451,64.42,Revenue,SCOTTISH HYDRO ELECTRIC,130051
South Ribble Council,http://statistics.data.gov.uk/doc/local-authority/30UN,Property Services,Energy Costs,2303,1/9/19 to 30/9/19,24/10/2019,0000450477,"1,647.74",Revenue,SCOTTISH HYDRO ELECTRIC,130051
South Ribble Council,http://statistics.data.gov.uk/doc/local-authority/30UN,Property Services,Energy Costs,2307,CCL,24/10/2019,0000450477,135.55,Revenue,SCOTTISH HYDRO ELECTRIC,130051
South Ribble Council,http://statistics.data.gov.uk/doc/local-authority/30UN,Property Services,Energy Costs,2303,1/9/19 to 30/9/19,24/10/2019,0000450478,413.27,Revenue,SCOTTISH HYDRO ELECTRIC,130051
South Ribble Council,http://statistics.data.gov.uk/doc/local-authority/30UN,Property Services,Energy Costs,2303,CCL,24/10/2019,0000450478,30.47,Revenue,SCOTTISH HYDRO ELECTRIC,130051
South Ribble Council,http://statistics.data.gov.uk/doc/local-authority/30UN,Information Services,Peripherals,4245,"UPS annual maintenance renewal for period 01/09/19 - 31/08/20, as per quote 34100",09/10/2019,0000450118,995.00,Revenue,SECURE POWER LTD,131336
South Ribble Council,http://statistics.data.gov.uk/doc/local-authority/30UN,Information Services,Peripherals,4248,Clearswift SECURE Email Gateway subscription 28/11/19 - 27/11/20,30/10/2019,0000450574,"5,690.09",Revenue,SecureData Europe Ltd,132381
South Ribble Council,http://statistics.data.gov.uk/doc/local-authority/30UN,Property Services,Consultancy Fees,4536,R & M for 2019/2020,11/10/2019,0000449912,"14,482.00",Revenue,SERCO LEISURE (OP) LTD,00094906
South Ribble Council,http://statistics.data.gov.uk/doc/local-authority/30UN,Development Enterprise & Comm Mgnt,Advertising,4842,"Business Apprenticeship Expo Full package for Lancashire Apprenticeship and Careers Expo 2020, & Careers Caf�. Your logo will appear alongside all North West Apprentice",02/10/2019,0000449848,"5,000.00",Revenue,SHOUT Network Ltd,131530
South Ribble Council,http://statistics.data.gov.uk/doc/local-authority/30UN,Information Services,Professional Fees,4520,Shredding of Confidential Waste 2019/20,09/10/2019,0000449999,254.40,Revenue,SHRED-IT LTD,00109134
South Ribble Council,http://statistics.data.gov.uk/doc/local-authority/30UN,Information Services,Professional Fees,4520,Shredding of Confidential Waste 2019/20,16/10/2019,0000450159,254.40,Revenue,SHRED-IT LTD,00109134
South Ribble Council,http://statistics.data.gov.uk/doc/local-authority/30UN,Information Services,Professional Fees,4520,Shredding of Confidential Waste 2019/20,30/10/2019,0000450573,278.75,Revenue,SHRED-IT LTD,00109134
South Ribble Council,http://statistics.data.gov.uk/doc/local-authority/30UN,Area 2 - Waste Transport/Eastern & Central Teams,Cap Vehicles,C440,Livery and Chevron Kit for Johnston 401 Sweeper as per quote dated 18/09/19.,30/10/2019,0000449913,474.90,Revenue,SIGNS PRESTON LTD T/A SIGNS EXPRESS CENTRAL LANCS,131706
South Ribble Council,http://statistics.data.gov.uk/doc/local-authority/30UN,Area 3 - Parks/Leyland East West,Capital Expenditure,C230,Please carry out Topographical survey at the following sites: Worden Park,02/10/2019,0000449833,500.00,Revenue,SITE SURVEYING SERVICES LIMITED,130394
South Ribble Council,http://statistics.data.gov.uk/doc/local-authority/30UN,Area 3 - Parks/Leyland East West,Capital Expenditure,C230,"Please carry out Topographical survey on Bent Lane Playing Field, Leyland.",02/10/2019,0000449837,925.00,Revenue,SITE SURVEYING SERVICES LIMITED,130394
South Ribble Council,http://statistics.data.gov.uk/doc/local-authority/30UN,Area 3 - Parks/Leyland East West,Capital Expenditure,C230,"Please carry out Topographical survey on Balcarres Green, Leyland.",02/10/2019,0000449838,585.00,Revenue,SITE SURVEYING SERVICES LIMITED,130394
South Ribble Council,http://statistics.data.gov.uk/doc/local-authority/30UN,Area 3 - Parks/Leyland East West,Grounds Maint Cntrctrs Chgs,4657,"TOPOGRAPHICAL SURVEY OF HAIG AVENUE, LEYLAND",11/10/2019,0000450006,350.00,Revenue,SITE SURVEYING SERVICES LIMITED,130394
South Ribble Council,http://statistics.data.gov.uk/doc/local-authority/30UN,Customer Contact,Clothing- Uniforms & Laundry,4410,"Full Uniform for 3 New members of staff. Evolution Sloan Dress, Evolution Islington jacket regular, Evo",24/10/2019,0000450312,658.31,Revenue,SMART IMAGE WORKWEAR,00031503
South Ribble Council,http://statistics.data.gov.uk/doc/local-authority/30UN,HR & Communications,Payroll Suspense,1731,PLEASE PROVIDE 250 OF VOUCHER SHOP VOUCHERS- NAME REDACTED,04/10/2019,0000449961,250.00,Revenue,Sodexo T/A THE VOUCHER SHOP,130951
South Ribble Council,http://statistics.data.gov.uk/doc/local-authority/30UN,HR & Communications,Payroll Suspense,1731,,04/10/2019,0000449961,7.00,Revenue,Sodexo T/A THE VOUCHER SHOP,130951
South Ribble Council,http://statistics.data.gov.uk/doc/local-authority/30UN,Information Services,Peripherals,4247,"Cerberus FTP Server (Enterprise Edition, Single Renewal - 1 year Support & Upgrades ESD) for period 01/11/19 - 31/10/20",18/10/2019,0000450321,654.50,Revenue,SOFTCAT LIMITED,130963
South Ribble Council,http://statistics.data.gov.uk/doc/local-authority/30UN,Property Services,Consultancy Fees,4532,Leisure Services Fee 2019/2020,16/10/2019,0000449923,"22,748.00",Revenue,SOUTH RIBBLE COMMUNITY LEISUR,00094210
South Ribble Council,http://statistics.data.gov.uk/doc/local-authority/30UN,Democratic Services,Other Misc,4421,COURT HIRE FOR LOCAL ELECTION BALLOT RECEPTION 2 MAY 2019,16/10/2019,0000450316,724.28,Revenue,SOUTH RIBBLE COMMUNITY LEISUR,00094210
South Ribble Council,http://statistics.data.gov.uk/doc/local-authority/30UN,Democratic Services,Other Misc,4424,COURT HIRE FOR LOCAL ELECTION COUNT ON 3 MAY 2019,16/10/2019,0000450316,"1,448.56",Revenue,SOUTH RIBBLE COMMUNITY LEISUR,00094210
South Ribble Council,http://statistics.data.gov.uk/doc/local-authority/30UN,Democratic Services,Other Misc,4424,CAFE TAB: TEA X 23 MACHINE COFFEE X 55 FILTER COFFEE X 35,16/10/2019,0000450316,212.55,Revenue,SOUTH RIBBLE COMMUNITY LEISUR,00094210
South Ribble Council,http://statistics.data.gov.uk/doc/local-authority/30UN,Democratic Services,Other Misc,4424,BOTTLED WATER - 240 SPORTS CAP BOTTLES,16/10/2019,0000450316,49.80,Revenue,SOUTH RIBBLE COMMUNITY LEISUR,00094210
South Ribble Council,http://statistics.data.gov.uk/doc/local-authority/30UN,Democratic Services,Other Misc,4424,HIRE OF 120 CHAIRS,16/10/2019,0000450316,200.00,Revenue,SOUTH RIBBLE COMMUNITY LEISUR,00094210
South Ribble Council,http://statistics.data.gov.uk/doc/local-authority/30UN,Shared Financial Services,Balance Sheet,0030,Monthly deductions from Payroll,09/10/2019,0000450116,"1,495.85",Revenue,SOUTH RIBBLE LABOUR PARTY LOC,00120663
South Ribble Council,http://statistics.data.gov.uk/doc/local-authority/30UN,Area 2 - Waste Transport/Eastern & Central Teams,External Contractors Charges,4570,SPEC REPAIR VU11HSZ JFC 12837,24/10/2019,0000450268,382.50,Revenue,Southfield RCV Services Limited,132963
South Ribble Council,http://statistics.data.gov.uk/doc/local-authority/30UN,Shared Financial Services,Balance Sheet,0030,Monthly Deductions from Payroll,09/10/2019,0000450114,264.74,Revenue,ST CATHERINES HOSPICE PROMOTI,00057749
South Ribble Council,http://statistics.data.gov.uk/doc/local-authority/30UN,Property Services,Other Misc,4851,"First Aid provision for Leyland Festival 15th June 2019, 6 x First Aiders, 1 x Ambulance & Crew, 1 x medium Mobile First Aid & Medical Units, 1 x Events Duty Officer",22/10/2019,0000450326,"1,066.00",Revenue,ST JOHNS AMBULANCE,00116253
South Ribble Council,http://statistics.data.gov.uk/doc/local-authority/30UN,Legal,Legal,4821,"Advice in respect of: Moor Hey Business Park, Moss House Lane, Much Hoole",30/10/2019,0000450542,"1,050.00",Revenue,STEPHANIE HALL,132966
South Ribble Council,http://statistics.data.gov.uk/doc/local-authority/30UN,Development Enterprise & Comm Mgnt,Advertising,4842,"Six monthly order for operation, updating of the museum website 1st September 2019 - 28th February 2020",30/10/2019,0000450444,440.00,Revenue,STEPHEN WATSON,00113557
South Ribble Council,http://statistics.data.gov.uk/doc/local-authority/30UN,Area 3 - Parks/Leyland East West,Grounds Maint Cntrctrs Chgs,4657,Bearings for pedal roundabout as per quotation TD100919,04/10/2019,0000449756,963.50,Revenue,SUTCLIFFE PLAY LTD,00034953
South Ribble Council,http://statistics.data.gov.uk/doc/local-authority/30UN,Area 3 - Parks/Leyland East West,Grounds Maint Cntrctrs Chgs,4657,Carriage,04/10/2019,0000449756,96.35,Revenue,SUTCLIFFE PLAY LTD,00034953
South Ribble Council,http://statistics.data.gov.uk/doc/local-authority/30UN,HR & Communications,Training Expense-Course Fees,1402,NAME REDACTED TO ATTEND HGV TRAINING AND TEST ON 30 SEPTEMBER 2019 AT PRESTON,02/10/2019,0000449831,"1,000.00",Revenue,T WALKER HGV,132933
South Ribble Council,http://statistics.data.gov.uk/doc/local-authority/30UN,HR & Communications,Training Expense-Course Fees,1402,driving test fee,02/10/2019,0000449831,115.00,Revenue,T WALKER HGV,132933
South Ribble Council,http://statistics.data.gov.uk/doc/local-authority/30UN,Area 2 - Waste Transport/Eastern & Central Teams,Materials General,4040,2 X BIN CYLINDERS PO13UUM JFC 13307,11/10/2019,0000450135,571.66,Revenue,Taylor Enginering & Fabrications Ltd,132560
South Ribble Council,http://statistics.data.gov.uk/doc/local-authority/30UN,Area 2 - Waste Transport/Eastern & Central Teams,Materials General,4040,"1x safety arm o/side, VU11 HSZ, JFC13317 (NAME REDACTED)",11/10/2019,0000450136,389.00,Revenue,Taylor Enginering & Fabrications Ltd,132560
South Ribble Council,http://statistics.data.gov.uk/doc/local-authority/30UN,Area 2 - Waste Transport/Eastern & Central Teams,Materials General,4040,Carriage,11/10/2019,0000450136,14.50,Revenue,Taylor Enginering & Fabrications Ltd,132560
South Ribble Council,http://statistics.data.gov.uk/doc/local-authority/30UN,Area 2 - Waste Transport/Eastern & Central Teams,Materials General,4040,SAFETY ARM TEM 1656 VU60HLE JFC 13408,30/10/2019,0000450396,410.25,Revenue,Taylor Enginering & Fabrications Ltd,132560
South Ribble Council,http://statistics.data.gov.uk/doc/local-authority/30UN,Information Services,Other Misc,4851,To deliver the services as specified in quotation ref. TALSRBCQ002,04/10/2019,0000449672,750.00,Revenue,TechAlign,132535
South Ribble Council,http://statistics.data.gov.uk/doc/local-authority/30UN,Information Services,Peripherals,4247,"AD Upgrade & Office365 Enablement SoW, as per quote ref. 107",04/10/2019,0000449830,"3,995.00",Revenue,TechAlign,132535
South Ribble Council,http://statistics.data.gov.uk/doc/local-authority/30UN,Information Services,Peripherals,4246,Retainer for Services for 4 days per month for 6 months @ 650 per day,24/10/2019,0000450493,"2,600.00",Revenue,TechAlign,132535
South Ribble Council,http://statistics.data.gov.uk/doc/local-authority/30UN,Property Services,Rep & Maint Premises,2020,"Please attend Civic Centre, Leyland PR25 1Dh and carry out works as per quote 9983  EP  as per NAME REDACTED",04/10/2019,0000449942,"4,538.36",Revenue,THE AUTOMATIC DOOR COMPANY LT,00108533
South Ribble Council,http://statistics.data.gov.uk/doc/local-authority/30UN,Neighbourhood Admin & Support,Operational Furniture & Equip,4010,LITTER PICKER - RANGER MAX - LP3035 - 35``,24/10/2019,0000450429,810.50,Revenue,The Helping Hand Company,132811
South Ribble Council,http://statistics.data.gov.uk/doc/local-authority/30UN,HR & Communications,Payroll Suspense,1741,RENEWAL OF PRACTICE CERTIFICATES FOR NAME REDACTED AND NAME REDACTED FOR 2020,22/10/2019,0000450391,676.00,Revenue,THE LAW SOCIETY,130665
South Ribble Council,http://statistics.data.gov.uk/doc/local-authority/30UN,Information Services,Peripherals,4247,"C-termed support on Cisco hardware for period 30/08/19 - 31/03/20, as per quote",11/10/2019,0000450146,254.24,Revenue,The Networking People (TNP) Ltd,132331
South Ribble Council,http://statistics.data.gov.uk/doc/local-authority/30UN,Property Services,Operational Furniture & Equip,4012,To supply services for Moss Side Community Centre as per quotation SQ105979,22/10/2019,0000450342,"1,672.40",Revenue,The Networking People (TNP) Ltd,132331
South Ribble Council,http://statistics.data.gov.uk/doc/local-authority/30UN,Planning,Agency Fees,1121,Agency Worker NAME REDACTED - Enforcement,11/10/2019,0000449845,"1,665.00",Revenue,The Oyster Partnership,132919
South Ribble Council,http://statistics.data.gov.uk/doc/local-authority/30UN,Planning,Agency Fees,1121,Agency Worker NAME REDACTED - Enforcement,11/10/2019,0000450053,"1,350.00",Revenue,The Oyster Partnership,132919
South Ribble Council,http://statistics.data.gov.uk/doc/local-authority/30UN,Revenues Plus,Balance Sheet,0001,,30/10/2019,0000450561,"1,255.73",Revenue,THOMAS G CLARKSON & SON LTD,00018335
South Ribble Council,http://statistics.data.gov.uk/doc/local-authority/30UN,Housing,Cap Grant- Improve Grants,C570,Grant payment towards the cost of supply and installation of external wall insulation to ADDRESS REDACTED Cost of Grant  4000,09/10/2019,0000450001,"4,000.00",Revenue,Trade Energy,132102
South Ribble Council,http://statistics.data.gov.uk/doc/local-authority/30UN,HR & Communications,Training Expense-Course Fees,1402,"NAME REDACTED TO ATTEND - TRA INTRO TO LARGE STRATEGIC SITES / NEW SETTLEMENTS ON 20 NOVEMBER 2019 AT MANCHESTER MEETING PLACE, MANCHESTER",18/10/2019,0000450341,300.00,Revenue,TREVOR ROBERTS ASSOCIATES LTD,00033996
South Ribble Council,http://statistics.data.gov.uk/doc/local-authority/30UN,Development Enterprise & Comm Mgnt,Other Misc,485K,"Invest in South Ribble � Summer 2019 Copywriting / project mgmt,  project schedule, ensuring delivery on 27/9/19 Source recent and relevant stories celebrating good ne",09/10/2019,0000450029,"2,550.00",Revenue,TWA Marketing and Communications Lt,132818
South Ribble Council,http://statistics.data.gov.uk/doc/local-authority/30UN,Community Safety,Other Misc,4861,funds neighbourhood forum,02/10/2019,0000449817,300.00,Revenue,ULNES WALTON BRIDLEWAY ASSOC,130928
South Ribble Council,http://statistics.data.gov.uk/doc/local-authority/30UN,Planning,Operational Furniture & Equip,4010,25 x buffet @4.50 per head,09/10/2019,0000448878,112.50,Revenue,UNIVERSITY OF CENTRAL LANCASH,131183
South Ribble Council,http://statistics.data.gov.uk/doc/local-authority/30UN,Planning,External Contractors Charges,4575,Cakes pastries and fruit for member induction 8th may 2019,09/10/2019,0000448878,205.00,Revenue,UNIVERSITY OF CENTRAL LANCASH,131183
South Ribble Council,http://statistics.data.gov.uk/doc/local-authority/30UN,Planning,External Contractors Charges,4575,Planning meeting hot meals for 25 on 29th May 2019,09/10/2019,0000448878,237.50,Revenue,UNIVERSITY OF CENTRAL LANCASH,131183
South Ribble Council,http://statistics.data.gov.uk/doc/local-authority/30UN,Planning,External Contractors Charges,4575,Selection of cakes and Pastries for 50  Members induction 14th may 2019,09/10/2019,0000448878,205.00,Revenue,UNIVERSITY OF CENTRAL LANCASH,131183
South Ribble Council,http://statistics.data.gov.uk/doc/local-authority/30UN,Planning,External Contractors Charges,4575,Hot and cold buffet for Mayoral Installation 15th May 2019,09/10/2019,0000448878,"1,020.00",Revenue,UNIVERSITY OF CENTRAL LANCASH,131183
South Ribble Council,http://statistics.data.gov.uk/doc/local-authority/30UN,Planning,External Contractors Charges,4575,Buffet 22 May 16 @ 7,09/10/2019,0000448878,112.00,Revenue,UNIVERSITY OF CENTRAL LANCASH,131183
South Ribble Council,http://statistics.data.gov.uk/doc/local-authority/30UN,Housing,Consultancy Fees,4541,Consultancy work for New Housing Delivery - Member Session,16/10/2019,0000450045,975.00,Revenue,URBAN VISION  PARTNERSHIP LTD,00105659
South Ribble Council,http://statistics.data.gov.uk/doc/local-authority/30UN,Property Services,Consultancy Fees,4541,Fees in relation to new hosing company training,11/10/2019,0000450215,975.00,Revenue,URBAN VISION  PARTNERSHIP LTD,00105659
South Ribble Council,http://statistics.data.gov.uk/doc/local-authority/30UN,Information Services,Peripherals,4247,internet access charge ref;PR142140,02/10/2019,0000449379,679.84,Revenue,VODAFONE RE:CABLE & WIRELESS UK,130810
South Ribble Council,http://statistics.data.gov.uk/doc/local-authority/30UN,Information Services,Peripherals,4269,25/09/2019,09/10/2019,0000450003,675.80,Revenue,VODAFONE RE:CABLE & WIRELESS UK,130810
South Ribble Council,http://statistics.data.gov.uk/doc/local-authority/30UN,Information Services,Peripherals,4269,27-Oct-19,30/10/2019,0000450594,646.84,Revenue,VODAFONE RE:CABLE & WIRELESS UK,130810
South Ribble Council,http://statistics.data.gov.uk/doc/local-authority/30UN,Customer Contact,Clothing- Uniforms & Laundry,4410,"Daisy T Shirt - 4   XXL, 2   xl, 9  large, 18 Medium, 2 small",04/10/2019,0000449971,592.75,Revenue,VORTEX DESIGNS LTD,131088
South Ribble Council,http://statistics.data.gov.uk/doc/local-authority/30UN,Property Services,Water Charges,2511,5/4/19 to 1/10/19,24/10/2019,0000450466,420.53,Revenue,WATER PLUS,00029845
South Ribble Council,http://statistics.data.gov.uk/doc/local-authority/30UN,HR & Communications,Other Misc,4851,PLEASE PROVIDE 180 LANYARDS (VARIOUS COLOURS) AS PER QUOTATION NUMBER 342741 INCLUDING CARRIAGE,16/10/2019,0000450160,426.60,Revenue,We Brand It  re;Trade Promotions Ltd,132422
South Ribble Council,http://statistics.data.gov.uk/doc/local-authority/30UN,Legal,Legal,4821,"PROFESSIONAL SERVICES WITH REGARD TO THE MCKENZIE ARMS, BAMBER BRIDGE - 29 - 30 AUGUST 2019",16/10/2019,0000450220,291.60,Revenue,WEIGHTMANS LLP,00120867
South Ribble Council,http://statistics.data.gov.uk/doc/local-authority/30UN,Legal,Legal,4821,disbursments,16/10/2019,0000450220,9.00,Revenue,WEIGHTMANS LLP,00120867
South Ribble Council,http://statistics.data.gov.uk/doc/local-authority/30UN,Area 2 - Waste Transport/Eastern & Central Teams,Cap Vehicles,C440,Nt400 Cabstar MWB Db/cb/dsd 35 BR19ODM,04/10/2019,0000449995,"22,200.00",Revenue,Westway Nissan,131964
South Ribble Council,http://statistics.data.gov.uk/doc/local-authority/30UN,Area 2 - Waste Transport/Eastern & Central Teams,Cap Vehicles,C440,first reg,04/10/2019,0000449995,315.00,Revenue,Westway Nissan,131964
South Ribble Council,http://statistics.data.gov.uk/doc/local-authority/30UN,Area 2 - Waste Transport/Eastern & Central Teams,Cap Vehicles,C440,Nt400 Cabstar MWB Db/cb/dsd 35 BR19ODN,04/10/2019,0000449996,"25,000.00",Revenue,Westway Nissan,131964
South Ribble Council,http://statistics.data.gov.uk/doc/local-authority/30UN,Area 2 - Waste Transport/Eastern & Central Teams,Cap Vehicles,C440,first reg,04/10/2019,0000449996,315.00,Revenue,Westway Nissan,131964
South Ribble Council,http://statistics.data.gov.uk/doc/local-authority/30UN,Area 2 - Waste Transport/Eastern & Central Teams,Cap Vehicles,C440,Nt400 Cabstar MWB Db/cb/dsd 35 BX19EOV,04/10/2019,0000449997,"25,000.00",Revenue,Westway Nissan,131964
South Ribble Council,http://statistics.data.gov.uk/doc/local-authority/30UN,Area 2 - Waste Transport/Eastern & Central Teams,Cap Vehicles,C440,first reg,04/10/2019,0000449997,315.00,Revenue,Westway Nissan,131964
South Ribble Council,http://statistics.data.gov.uk/doc/local-authority/30UN,Revenues Plus,Postage,4291,Revenues July - September 2019,09/10/2019,0000450101,268.94,Revenue,WHISTL  UK LTD,131310
South Ribble Council,http://statistics.data.gov.uk/doc/local-authority/30UN,Revenues Plus,Postage,4291,Benefits for October to December 2019,24/10/2019,0000450500,466.42,Revenue,WHISTL  UK LTD,131310
South Ribble Council,http://statistics.data.gov.uk/doc/local-authority/30UN,Area 3 - Parks/Leyland East West,External Contractors Charges,4570,"TOPPING WORK UNDERTAKEN AT VARIOUS SITES - 14TH, 15TH, 16TH AND 17TH AUGUST 2018",16/10/2019,0000450304,"1,200.00",Revenue,WILLIAM METCALFE & SONS,00029573
South Ribble Council,http://statistics.data.gov.uk/doc/local-authority/30UN,Area 3 - Parks/Leyland East West,Capital Expenditure,C230,"GROUND INVESTIGATION - SEVEN STARS PLAYGROUND, LEYLAND, PR251HW",16/10/2019,0000450192,"2,005.00",Revenue,WORMS EYE LIMITED,132915
South Ribble Council,http://statistics.data.gov.uk/doc/local-authority/30UN,Area 3 - Parks/Leyland East West,Capital Expenditure,C230,"GROUND INVESTIGATION - LEADALE GREEN PLAYGROUND, LEYLAND, PR251GO",16/10/2019,0000450210,"2,005.00",Revenue,WORMS EYE LIMITED,132915
South Ribble Council,http://statistics.data.gov.uk/doc/local-authority/30UN,Area 2 - Waste Transport/Eastern & Central Teams,Materials General,4040,089332110 SUPER RTV SILIC,09/10/2019,0000449925,46.59,Revenue,WURTH UK LTD,00069106
South Ribble Council,http://statistics.data.gov.uk/doc/local-authority/30UN,Area 2 - Waste Transport/Eastern & Central Teams,Materials General,4040,08935005 PLASTIC ADHESIVE,09/10/2019,0000449925,49.95,Revenue,WURTH UK LTD,00069106
South Ribble Council,http://statistics.data.gov.uk/doc/local-authority/30UN,Area 2 - Waste Transport/Eastern & Central Teams,Materials General,4040,0891893485 DUAL CARTRIDGE GUN,09/10/2019,0000449925,19.60,Revenue,WURTH UK LTD,00069106
South Ribble Council,http://statistics.data.gov.uk/doc/local-authority/30UN,Area 2 - Waste Transport/Eastern & Central Teams,Materials General,4040,0893243050 MEDIUM STRENGTH SCREW RETAINER,09/10/2019,0000449925,19.96,Revenue,WURTH UK LTD,00069106
South Ribble Council,http://statistics.data.gov.uk/doc/local-authority/30UN,Area 2 - Waste Transport/Eastern & Central Teams,Materials General,4040,0669131150 CUTTING DISC FOR STAINLESS STEEL,09/10/2019,0000449925,1.29,Revenue,WURTH UK LTD,00069106
South Ribble Council,http://statistics.data.gov.uk/doc/local-authority/30UN,Area 2 - Waste Transport/Eastern & Central Teams,Materials General,4040,062520 TWIST DRILL 10 PIECES,09/10/2019,0000449925,5.10,Revenue,WURTH UK LTD,00069106
South Ribble Council,http://statistics.data.gov.uk/doc/local-authority/30UN,Area 2 - Waste Transport/Eastern & Central Teams,Materials General,4040,062530 TWIST DRILL 10 PIECES,09/10/2019,0000449925,7.20,Revenue,WURTH UK LTD,00069106
South Ribble Council,http://statistics.data.gov.uk/doc/local-authority/30UN,Area 2 - Waste Transport/Eastern & Central Teams,Materials General,4040,062540 TWIST DRILL 10 PIECES,09/10/2019,0000449925,9.40,Revenue,WURTH UK LTD,00069106
South Ribble Council,http://statistics.data.gov.uk/doc/local-authority/30UN,Area 2 - Waste Transport/Eastern & Central Teams,Materials General,4040,062560 TWIST DRILL,09/10/2019,0000449925,8.05,Revenue,WURTH UK LTD,00069106
South Ribble Council,http://statistics.data.gov.uk/doc/local-authority/30UN,Area 2 - Waste Transport/Eastern & Central Teams,Materials General,4040,062570 TWIST DRILL,09/10/2019,0000449925,9.90,Revenue,WURTH UK LTD,00069106
South Ribble Council,http://statistics.data.gov.uk/doc/local-authority/30UN,Area 2 - Waste Transport/Eastern & Central Teams,Materials General,4040,062580 TWIST DRILL,09/10/2019,0000449925,10.25,Revenue,WURTH UK LTD,00069106
South Ribble Council,http://statistics.data.gov.uk/doc/local-authority/30UN,Area 2 - Waste Transport/Eastern & Central Teams,Materials General,4040,0625110 TWIST DRILL,09/10/2019,0000449925,15.04,Revenue,WURTH UK LTD,00069106
South Ribble Council,http://statistics.data.gov.uk/doc/local-authority/30UN,Area 2 - Waste Transport/Eastern & Central Teams,Materials General,4040,0625120 TWIST DRILL,09/10/2019,0000449925,17.88,Revenue,WURTH UK LTD,00069106
South Ribble Council,http://statistics.data.gov.uk/doc/local-authority/30UN,Area 2 - Waste Transport/Eastern & Central Teams,Materials General,4040,0625140 TWIST DRILL,09/10/2019,0000449925,14.88,Revenue,WURTH UK LTD,00069106
South Ribble Council,http://statistics.data.gov.uk/doc/local-authority/30UN,Area 2 - Waste Transport/Eastern & Central Teams,Materials General,4040,0670161154 LONGLIFE GRINDING DISC FOR STEEL,09/10/2019,0000449925,24.40,Revenue,WURTH UK LTD,00069106
South Ribble Council,http://statistics.data.gov.uk/doc/local-authority/30UN,Area 2 - Waste Transport/Eastern & Central Teams,Materials General,4040,05421012 PIPE & FASTENING CLAMP 50 PIECES,09/10/2019,0000449925,27.70,Revenue,WURTH UK LTD,00069106
South Ribble Council,http://statistics.data.gov.uk/doc/local-authority/30UN,Area 2 - Waste Transport/Eastern & Central Teams,Materials General,4040,089360 CONTACT SPRAY OL,09/10/2019,0000449925,26.76,Revenue,WURTH UK LTD,00069106
South Ribble Council,http://statistics.data.gov.uk/doc/local-authority/30UN,Area 2 - Waste Transport/Eastern & Central Teams,Materials General,4040,072016522 PLASTIC SOCKET BULB 10 PIECES,09/10/2019,0000449925,0.00,Revenue,WURTH UK LTD,00069106
South Ribble Council,http://statistics.data.gov.uk/doc/local-authority/30UN,Area 2 - Waste Transport/Eastern & Central Teams,Materials General,4040,0770102 VEHICLE LINE 100 PIECES,09/10/2019,0000449925,44.48,Revenue,WURTH UK LTD,00069106
South Ribble Council,http://statistics.data.gov.uk/doc/local-authority/30UN,Area 2 - Waste Transport/Eastern & Central Teams,Materials General,4040,0555512200 PUSH CONNECTOR 50 PIECES,09/10/2019,0000449925,39.97,Revenue,WURTH UK LTD,00069106
South Ribble Council,http://statistics.data.gov.uk/doc/local-authority/30UN,Area 2 - Waste Transport/Eastern & Central Teams,Materials General,4040,0555512210 BLADE CONNECTOR 50 PIECES,09/10/2019,0000449925,35.87,Revenue,WURTH UK LTD,00069106
South Ribble Council,http://statistics.data.gov.uk/doc/local-authority/30UN,Legal,Legal,4821,Former Eagle & Child Bowling Club Groundsure Screening 0-15 hectares,30/10/2019,0000450476,175.00,Revenue,XPressLegal Services,132037
South Ribble Council,http://statistics.data.gov.uk/doc/local-authority/30UN,Legal,Legal,4821,PinPoint Chancel Commercial (0-3),30/10/2019,0000450476,29.17,Revenue,XPressLegal Services,132037
South Ribble Council,http://statistics.data.gov.uk/doc/local-authority/30UN,Legal,Legal,4821,Regulated Local Authority Search,30/10/2019,0000450476,62.50,Revenue,XPressLegal Services,132037
